Workbook

Sheet Front Sheet
F7: Electricity Network Innovation Competition Full Submission
F8: Spreadsheet
F10: (2019 version 1.1)
F11: Appendix A
C15: Licensee Name: | D15: SGN
C17: Submission Date: | D17: 2020-11-13
B21: Input cells
B22: Totals cells (of formula within worksheet)
B23: Referencing to other worksheets
B24: Check cells
B25: No Input
B26: Descriptions and pack data
B27: Ofgem Input cells

Sheet NIC Funding Request
A1: NIC Funding Request
C2: 2020/21 | D2: 2021/22 | E2: 2022/23 | F2: 2023/24 | G2: 2024/25 | H2: 2025/26 | I2: 2026/27 | J2: Total
A3: Total Project Cost | B3: From Project Cost Summary sheet
B4: Labour | C4: ='Project Cost Summary'!$C18 -> 0 | D4: ='Project Cost Summary'!$C31 -> 492969 | E4: ='Project Cost Summary'!$C44 -> 838477.8 | F4: ='Project Cost Summary'!$C57 -> 333478.8 | G4: ='Project Cost Summary'!$C70 -> 333478.8 | H4: ='Project Cost Summary'!$C83 -> 333478.8 | I4: ='Project Cost Summary'!$C96 -> 333478.8 | J4: =SUM(C4:I4) -> 2665362
B5: Equipment | C5: ='Project Cost Summary'!$D18 -> 6078627 | D5: ='Project Cost Summary'!$D31 -> 302658.3333 | E5: ='Project Cost Summary'!$D44 -> 2709933.293 | F5: ='Project Cost Summary'!$D57 -> 1272765.733 | G5: ='Project Cost Summary'!$D70 -> 55460.73333 | H5: ='Project Cost Summary'!$D83 -> 55460.73333 | I5: ='Project Cost Summary'!$D96 -> 227960.7333 | J5: 10702866.56
B6: Contractors | C6: ='Project Cost Summary'!$E18 -> 500000 | D6: ='Project Cost Summary'!$E31 -> 1890605 | E6: ='Project Cost Summary'!$E44 -> 4565130.7 | F6: ='Project Cost Summary'!$E57 -> 609687.7 | G6: ='Project Cost Summary'!$E70 -> 340417.7 | H6: ='Project Cost Summary'!$E83 -> 340417.7 | I6: ='Project Cost Summary'!$E96 -> 590417.7 | J6: 8836676.5
B7: IT | C7: ='Project Cost Summary'!$F18 -> 0 | D7: ='Project Cost Summary'!$F31 -> 0 | E7: ='Project Cost Summary'!$F44 -> 0 | F7: ='Project Cost Summary'!$F57 -> 0 | G7: ='Project Cost Summary'!$F70 -> 0 | H7: ='Project Cost Summary'!$F83 -> 0 | I7: ='Project Cost Summary'!$F96 -> 0 | J7: 0
B8: IPR Costs | C8: ='Project Cost Summary'!$G18 -> 0 | D8: ='Project Cost Summary'!$G31 -> 0 | E8: ='Project Cost Summary'!$G44 -> 0 | F8: ='Project Cost Summary'!$G57 -> 0 | G8: ='Project Cost Summary'!$G70 -> 0 | H8: ='Project Cost Summary'!$G83 -> 0 | I8: ='Project Cost Summary'!$G96 -> 0 | J8: 0
B9: Travel & Expenses | C9: ='Project Cost Summary'!$H18 -> 0 | D9: ='Project Cost Summary'!$H31 -> 0 | E9: ='Project Cost Summary'!$H44 -> 0 | F9: ='Project Cost Summary'!$H57 -> 0 | G9: ='Project Cost Summary'!$H70 -> 0 | H9: ='Project Cost Summary'!$H83 -> 0 | I9: ='Project Cost Summary'!$H96 -> 0 | J9: 0
A10: Payments to users & Contingency | C10: ='Project Cost Summary'!$I18+'Project Cost Summary'!$J18 -> 776215.3749 | D10: ='Project Cost Summary'!$I31+'Project Cost Summary'!$J31 -> 103352.4216 | E10: ='Project Cost Summary'!$I44+'Project Cost Summary'!$J44 -> 1225342.243 | F10: ='Project Cost Summary'!$I57+'Project Cost Summary'!$J57 -> 897801.4842 | G10: ='Project Cost Summary'!$I70+'Project Cost Summary'!$J70 -> 855963.929 | H10: ='Project Cost Summary'!$I83+'Project Cost Summary'!$J83 -> 855963.929 | I10: ='Project Cost Summary'!$I96+'Project Cost Summary'!$J96 -> 866326.2911 | J10: 5580965.673
B11: Decommissioning | C11: ='Project Cost Summary'!$K18 -> 0 | D11: ='Project Cost Summary'!$K31 -> 0 | E11: ='Project Cost Summary'!$K44 -> 0 | F11: ='Project Cost Summary'!$K57 -> 0 | G11: ='Project Cost Summary'!$K70 -> 0 | H11: ='Project Cost Summary'!$K83 -> 0 | I11: ='Project Cost Summary'!$K96 -> 0 | J11: 0
B12: Other | C12: ='Project Cost Summary'!$L18 -> 0 | D12: ='Project Cost Summary'!$L31 -> 0 | E12: ='Project Cost Summary'!$L44 -> 0 | F12: ='Project Cost Summary'!$L57 -> 0 | G12: ='Project Cost Summary'!$L70 -> 0 | H12: ='Project Cost Summary'!$L83 -> 0 | I12: ='Project Cost Summary'!$L96 -> 0 | J12: 0
B13: Total | C13: =SUM(C4:C12) -> 7354842.375 | D13: 2789584.755 | E13: 9338884.036 | F13: 3113733.717 | G13: 1585321.162 | H13: =SUM(H4:H12) -> 1585321.162 | I13: 2018183.524 | J13: 27785870.73
A15: External funding | B15: Any funding that will be received from Project Partners and/or External Funders - from Project Cost Summary sheet
B16: Labour | C16: ='Project Cost Summary'!$C22 -> 0 | D16: ='Project Cost Summary'!$C35 -> 0 | E16: ='Project Cost Summary'!$C48 -> 0 | F16: ='Project Cost Summary'!$C61 -> 0 | G16: ='Project Cost Summary'!$C74 -> 0 | H16: ='Project Cost Summary'!$C87 -> 0 | I16: ='Project Cost Summary'!$C100 -> 0 | J16: =SUM(C16:I16) -> 0
B17: Equipment | C17: ='Project Cost Summary'!$D22 -> 5665387.213 | D17: ='Project Cost Summary'!$D35 -> 0 | E17: ='Project Cost Summary'!$D48 -> 0 | F17: ='Project Cost Summary'!$D61 -> 0 | G17: ='Project Cost Summary'!$D74 -> 0 | H17: ='Project Cost Summary'!$D87 -> 0 | I17: ='Project Cost Summary'!$D100 -> 0 | J17: 5665387.213
B18: Contractors | C18: ='Project Cost Summary'!$E22 -> 466008.7889 | D18: ='Project Cost Summary'!$E35 -> 0 | E18: ='Project Cost Summary'!$E48 -> 0 | F18: ='Project Cost Summary'!$E61 -> 0 | G18: ='Project Cost Summary'!$E74 -> 0 | H18: ='Project Cost Summary'!$E87 -> 0 | I18: ='Project Cost Summary'!$E100 -> 0 | J18: 466008.7889
B19: IT | C19: ='Project Cost Summary'!$F22 -> 0 | D19: ='Project Cost Summary'!$F35 -> 0 | E19: ='Project Cost Summary'!$F48 -> 0 | F19: ='Project Cost Summary'!$F61 -> 0 | G19: ='Project Cost Summary'!$F74 -> 0 | H19: ='Project Cost Summary'!$F87 -> 0 | I19: ='Project Cost Summary'!$F100 -> 0 | J19: 0
B20: IPR Costs | C20: ='Project Cost Summary'!$G22 -> 0 | D20: ='Project Cost Summary'!$G35 -> 0 | E20: ='Project Cost Summary'!$G48 -> 0 | F20: ='Project Cost Summary'!$G61 -> 0 | G20: ='Project Cost Summary'!$G74 -> 0 | H20: ='Project Cost Summary'!$G87 -> 0 | I20: ='Project Cost Summary'!$G100 -> 0 | J20: 0
B21: Travel & Expenses | C21: ='Project Cost Summary'!$H22 -> 0 | D21: ='Project Cost Summary'!$H35 -> 0 | E21: ='Project Cost Summary'!$H48 -> 0 | F21: ='Project Cost Summary'!$H61 -> 0 | G21: ='Project Cost Summary'!$H74 -> 0 | H21: ='Project Cost Summary'!$H87 -> 0 | I21: ='Project Cost Summary'!$H100 -> 0 | J21: 0
A22: Payments to users & Contingency | C22: ='Project Cost Summary'!$I22+'Project Cost Summary'!$J22 -> 723446.3735 | D22: ='Project Cost Summary'!$I35+'Project Cost Summary'!$J35 -> 0 | E22: ='Project Cost Summary'!$I48+'Project Cost Summary'!$J48 -> 0 | F22: ='Project Cost Summary'!$I61+'Project Cost Summary'!$J61 -> 0 | G22: ='Project Cost Summary'!$I74+'Project Cost Summary'!$K74 -> 0 | H22: ='Project Cost Summary'!$I87+'Project Cost Summary'!$K87 -> 0 | I22: ='Project Cost Summary'!$I100+'Project Cost Summary'!$K100 -> 0 | J22: 723446.3735
B23: Decommissioning | C23: ='Project Cost Summary'!$K22 -> 0 | D23: ='Project Cost Summary'!$K35 -> 0 | E23: ='Project Cost Summary'!$K48 -> 0 | F23: ='Project Cost Summary'!$K61 -> 0 | G23: ='Project Cost Summary'!$K74 -> 0 | H23: ='Project Cost Summary'!$K87 -> 0 | I23: ='Project Cost Summary'!$K100 -> 0 | J23: 0
B24: Other | C24: ='Project Cost Summary'!$L22 -> 0 | D24: ='Project Cost Summary'!$L35 -> 0 | E24: ='Project Cost Summary'!$L48 -> 0 | F24: ='Project Cost Summary'!$L61 -> 0 | G24: ='Project Cost Summary'!$L74 -> 0 | H24: ='Project Cost Summary'!$L87 -> 0 | I24: ='Project Cost Summary'!$L100 -> 0 | J24: 0
B25: Total | C25: =SUM(C16:C24) -> 6854842.375 | D25: 0 | E25: 0 | F25: 0 | G25: 0 | H25: =SUM(H16:H24) -> 0 | I25: 0 | J25: 6854842.375
A27: Licensee extra contribution | B27: Any funding from the Licensee which is in excess of the Licensee Compulsory Contribution - from Project Cost Summary sheet
B28: Labour | C28: ='Project Cost Summary'!$C23 -> 0 | D28: ='Project Cost Summary'!$C36 -> 0 | E28: ='Project Cost Summary'!$C49 -> 0 | F28: ='Project Cost Summary'!$C62 -> 0 | G28: ='Project Cost Summary'!$C75 -> 0 | H28: ='Project Cost Summary'!$C88 -> 0 | I28: ='Project Cost Summary'!$C101 -> 0 | J28: =SUM(C28:I28) -> 0
B29: Equipment | C29: ='Project Cost Summary'!$D23 -> 413239.7875 | D29: ='Project Cost Summary'!$D36 -> 0 | E29: ='Project Cost Summary'!$D49 -> 0 | F29: ='Project Cost Summary'!$D62 -> 0 | G29: ='Project Cost Summary'!$D75 -> 0 | H29: ='Project Cost Summary'!$D88 -> 0 | I29: ='Project Cost Summary'!$D101 -> 0 | J29: 413239.7875
B30: Contractors | C30: ='Project Cost Summary'!$E23 -> 33991.21113 | D30: ='Project Cost Summary'!$E36 -> 0 | E30: ='Project Cost Summary'!$E49 -> 0 | F30: ='Project Cost Summary'!$E62 -> 0 | G30: ='Project Cost Summary'!$E75 -> 0 | H30: ='Project Cost Summary'!$E88 -> 0 | I30: ='Project Cost Summary'!$E101 -> 0 | J30: 33991.21113
B31: IT | C31: ='Project Cost Summary'!$F23 -> 0 | D31: ='Project Cost Summary'!$F36 -> 0 | E31: ='Project Cost Summary'!$F49 -> 0 | F31: ='Project Cost Summary'!$F62 -> 0 | G31: ='Project Cost Summary'!$E75 -> 0 | H31: ='Project Cost Summary'!$E88 -> 0 | I31: ='Project Cost Summary'!$E101 -> 0 | J31: 0
B32: IPR Costs | C32: ='Project Cost Summary'!$G23 -> 0 | D32: ='Project Cost Summary'!$G36 -> 0 | E32: ='Project Cost Summary'!$G49 -> 0 | F32: ='Project Cost Summary'!$G62 -> 0 | G32: ='Project Cost Summary'!$F75 -> 0 | H32: ='Project Cost Summary'!$F88 -> 0 | I32: ='Project Cost Summary'!$F101 -> 0 | J32: 0
B33: Travel & Expenses | C33: ='Project Cost Summary'!$H23 -> 0 | D33: ='Project Cost Summary'!$H36 -> 0 | E33: ='Project Cost Summary'!$H49 -> 0 | F33: ='Project Cost Summary'!$H62 -> 0 | G33: ='Project Cost Summary'!$G75 -> 0 | H33: ='Project Cost Summary'!$G88 -> 0 | I33: ='Project Cost Summary'!$G101 -> 0 | J33: 0
A34: Payments to users & Contingency | C34: ='Project Cost Summary'!$I23+'Project Cost Summary'!$J23 -> 52769.00138 | D34: ='Project Cost Summary'!$I36+'Project Cost Summary'!$J36 -> 0 | E34: ='Project Cost Summary'!$I49+'Project Cost Summary'!$J49 -> 0 | F34: ='Project Cost Summary'!$I62 -> 0 | G34: ='Project Cost Summary'!$I75+'Project Cost Summary'!$J75 -> 0 | H34: ='Project Cost Summary'!$I88+'Project Cost Summary'!$J88 -> 0 | I34: ='Project Cost Summary'!$I101+'Project Cost Summary'!$J101 -> 0 | J34: 52769.00138
B35: Decommissioning | C35: ='Project Cost Summary'!$K23 -> 0 | D35: ='Project Cost Summary'!$K36 -> 0 | E35: ='Project Cost Summary'!$K49 -> 0 | F35: ='Project Cost Summary'!$K62 -> 0 | G35: ='Project Cost Summary'!$K75 -> 0 | H35: ='Project Cost Summary'!$K88 -> 0 | I35: ='Project Cost Summary'!$K101 -> 0 | J35: 0
B36: Other | C36: ='Project Cost Summary'!$L23 -> 0 | D36: ='Project Cost Summary'!$L36 -> 0 | E36: ='Project Cost Summary'!$L49 -> 0 | F36: ='Project Cost Summary'!$L62 -> 0 | G36: ='Project Cost Summary'!$L75 -> 0 | H36: ='Project Cost Summary'!$L88 -> 0 | I36: ='Project Cost Summary'!$L101 -> 0 | J36: 0
B37: Total | C37: =SUM(C28:C36) -> 500000 | D37: 0 | E37: 0 | F37: 0 | G37: 0 | H37: =SUM(H28:H36) -> 0 | I37: 0 | J37: 500000
A39: Initial Net Funding Required
B40: Labour | C40: =C4-C16-C28 -> 0 | D40: =D4-D16-D28 -> 492969 | E40: 838477.8 | F40: 333478.8 | G40: 333478.8 | H40: =H4-H16-H28 -> 333478.8 | I40: 333478.8 | J40: =J4-J16-J28 -> 2665362
B41: Equipment | C41: =C5-C17-C29 -> 0 | D41: 302658.3333 | E41: 2709933.293 | F41: 1272765.733 | G41: 55460.73333 | H41: =H5-H17-H29 -> 55460.73333 | I41: 227960.7333 | J41: 4624239.56
B42: Contractors | C42: =C6-C18-C30 -> 0 | D42: 1890605 | E42: 4565130.7 | F42: 609687.7 | G42: 340417.7 | H42: =H6-H18-H30 -> 340417.7 | I42: 590417.7 | J42: 8336676.5
B43: IT | C43: =C7-C19-C31 -> 0 | D43: 0 | E43: 0 | F43: 0 | G43: 0 | H43: =H7-H19-H31 -> 0 | I43: 0 | J43: 0
B44: IPR Costs | C44: =C8-C20-C32 -> 0 | D44: 0 | E44: 0 | F44: 0 | G44: 0 | H44: =H8-H20-H32 -> 0 | I44: 0 | J44: 0
B45: Travel & Expenses | C45: =C9-C21-C33 -> 0 | D45: 0 | E45: 0 | F45: 0 | G45: 0 | H45: =H9-H21-H33 -> 0 | I45: 0 | J45: 0
A46: Payments to users & Contingency | C46: =C10-C22-C34 -> 7.275957614e-11 | D46: 103352.4216 | E46: 1225342.243 | F46: 897801.4842 | G46: 855963.929 | H46: =H10-H22-H34 -> 855963.929 | I46: 866326.2911 | J46: 4804750.298
B47: Decommissioning | C47: =C11-C23-C35 -> 0 | D47: 0 | E47: 0 | F47: 0 | G47: 0 | H47: =H11-H23-H35 -> 0 | I47: 0 | J47: 0 | K47: Check Total = to Initial Net Funding request
B48: Other | C48: =C12-C24-C36 -> 0 | D48: 0 | E48: 0 | F48: 0 | G48: 0 | H48: =H12-H24-H36 -> 0 | I48: 0 | J48: 0 | K48: in Project Cost Summary
B49: Total | C49: =C13-C25-C37 -> 8.731149137e-10 | D49: 2789584.755 | E49: 9338884.036 | F49: 3113733.717 | G49: 1585321.162 | H49: =H13-H25-H37 -> 1585321.162 | I49: 2018183.524 | J49: =J13-J25-J37 -> 20431028.36 | K49: =IF(J49='Project Cost Summary'!M11,"OK","ERROR") -> OK
A51: Direct Benefits | B51: from Direct Benefits sheet
B52: Total | C52: ='Direct Benefits'!C11 -> 0 | D52: ='Direct Benefits'!D11 -> 0 | E52: ='Direct Benefits'!E11 -> 0 | F52: ='Direct Benefits'!F11 -> 0 | G52: ='Direct Benefits'!G11 -> 0 | H52: ='Direct Benefits'!H11 -> 0 | I52: ='Direct Benefits'!I11 -> 0 | J52: =SUM(C52:I52) -> 0
A56: Licensee Compulsory Contribution / Direct Benefits | C56: from Project Cost Summary sheet
B57: Labour | C57: ='Project Cost Summary'!$C25 -> 0 | D57: ='Project Cost Summary'!$C38 -> 459748.946 | E57: ='Project Cost Summary'!$C51 -> 0 | F57: ='Project Cost Summary'!$C64 -> 0 | G57: ='Project Cost Summary'!$C77 -> 0 | H57: ='Project Cost Summary'!$C90 -> 0 | I57: ='Project Cost Summary'!$C103 -> 0 | J57: =SUM(C57:I57) -> 459748.946
B58: Equipment | C58: ='Project Cost Summary'!$D25 -> 0 | D58: ='Project Cost Summary'!$D38 -> 269944.6262 | E58: ='Project Cost Summary'!$D51 -> 0 | F58: ='Project Cost Summary'!$D64 -> 0 | G58: ='Project Cost Summary'!$D77 -> 0 | H58: ='Project Cost Summary'!$D90 -> 0 | I58: ='Project Cost Summary'!$D103 -> 0 | J58: 269944.6262
B59: Contractors | C59: ='Project Cost Summary'!$E25 -> 0 | D59: ='Project Cost Summary'!$E38 -> 1251082.595 | E59: ='Project Cost Summary'!$E51 -> 0 | F59: ='Project Cost Summary'!$E64 -> 0 | G59: ='Project Cost Summary'!$E77 -> 0 | H59: ='Project Cost Summary'!$E90 -> 0 | I59: ='Project Cost Summary'!$E103 -> 0 | J59: 1251082.595
B60: IT | C60: ='Project Cost Summary'!$F25 -> 0 | D60: ='Project Cost Summary'!$F38 -> 0 | E60: ='Project Cost Summary'!$F51 -> 0 | F60: ='Project Cost Summary'!$F64 -> 0 | G60: ='Project Cost Summary'!$F77 -> 0 | H60: ='Project Cost Summary'!$F90 -> 0 | I60: ='Project Cost Summary'!$F103 -> 0 | J60: 0
B61: IPR Costs | C61: ='Project Cost Summary'!$G25 -> 0 | D61: ='Project Cost Summary'!$G38 -> 0 | E61: ='Project Cost Summary'!$G51 -> 0 | F61: ='Project Cost Summary'!$G64 -> 0 | G61: ='Project Cost Summary'!$G77 -> 0 | H61: ='Project Cost Summary'!$G90 -> 0 | I61: ='Project Cost Summary'!$G103 -> 0 | J61: 0
B62: Travel & Expenses | C62: ='Project Cost Summary'!$H25 -> 0 | D62: ='Project Cost Summary'!$H38 -> 0 | E62: ='Project Cost Summary'!$H51 -> 0 | F62: ='Project Cost Summary'!$H64 -> 0 | G62: ='Project Cost Summary'!$H77 -> 0 | H62: ='Project Cost Summary'!$H90 -> 0 | I62: ='Project Cost Summary'!$H103 -> 0 | J62: 0
A63: Payments to users & Contingency | C63: ='Project Cost Summary'!$I25+'Project Cost Summary'!$J25 -> 0 | D63: ='Project Cost Summary'!$I38+'Project Cost Summary'!$J38 -> 62326.66909 | E63: ='Project Cost Summary'!$I51+'Project Cost Summary'!$J51 -> 0 | F63: ='Project Cost Summary'!$I64+'Project Cost Summary'!$J64 -> 0 | G63: ='Project Cost Summary'!$I77+'Project Cost Summary'!$J77 -> 0 | H63: ='Project Cost Summary'!$I90+'Project Cost Summary'!$J90 -> 0 | I63: ='Project Cost Summary'!$I103+'Project Cost Summary'!$J103 -> 0 | J63: 62326.66909
B64: Decommissioning | C64: ='Project Cost Summary'!$K25 -> 0 | D64: ='Project Cost Summary'!$K38 -> 0 | E64: ='Project Cost Summary'!$K51 -> 0 | F64: ='Project Cost Summary'!$K64 -> 0 | G64: ='Project Cost Summary'!$K77 -> 0 | H64: ='Project Cost Summary'!$K90 -> 0 | I64: ='Project Cost Summary'!$K103 -> 0 | J64: 0 | K64: of Total Initial Net Funding Required
B65: Other | C65: ='Project Cost Summary'!$L25 -> 0 | D65: ='Project Cost Summary'!$L38 -> 0 | E65: ='Project Cost Summary'!$L51 -> 0 | F65: ='Project Cost Summary'!$L64 -> 0 | G65: ='Project Cost Summary'!$L77 -> 0 | H65: ='Project Cost Summary'!$L90 -> 0 | I65: ='Project Cost Summary'!$L103 -> 0 | J65: 0 | K65: =IF(J66>=J49*0.1,"OK","ERROR") -> OK
B66: Total | C66: =SUM(C57:C65) -> 0 | D66: 2043102.836 | E66: 0 | F66: 0 | G66: 0 | H66: =SUM(H57:H65) -> 0 | I66: 0 | J66: 2043102.836 | K66: Check that Total is = or > than
K67: Total Direct Benefits
K68: =IF(J66>=J52,"OK","ERROR") -> OK
A69: Outstanding Funding required
B70: Labour | C70: =C40-C57 -> 0 | D70: 33220.05402 | E70: 838477.8 | F70: 333478.8 | G70: =G40-G57 -> 333478.8 | H70: 333478.8 | I70: 333478.8 | J70: =SUM(C70:I70) -> 2205613.054
B71: Equipment | C71: 0 | D71: 32713.70717 | E71: 2709933.293 | F71: 1272765.733 | G71: 55460.73333 | H71: 55460.73333 | I71: 227960.7333 | J71: 4354294.934
B72: Contractors | C72: 0 | D72: 639522.4055 | E72: 4565130.7 | F72: 609687.7 | G72: 340417.7 | H72: 340417.7 | I72: 590417.7 | J72: 7085593.905
B73: IT | C73: 0 | D73: 0 | E73: 0 | F73: 0 | G73: 0 | H73: 0 | I73: 0 | J73: 0
B74: IPR Costs | C74: 0 | D74: 0 | E74: 0 | F74: 0 | G74: 0 | H74: 0 | I74: 0 | J74: 0
B75: Travel & Expenses | C75: 0 | D75: 0 | E75: 0 | F75: 0 | G75: 0 | H75: 0 | I75: 0 | J75: 0
A76: Payments to users & Contingency | C76: 7.275957614e-11 | D76: 41025.75253 | E76: 1225342.243 | F76: 897801.4842 | G76: 855963.929 | H76: 855963.929 | I76: 866326.2911 | J76: 4742423.629
B77: Decommissioning | C77: 0 | D77: 0 | E77: 0 | F77: 0 | G77: 0 | H77: 0 | I77: 0 | J77: 0 | K77: Check that Total is =to
B78: Other | C78: 0 | D78: 0 | E78: 0 | F78: 0 | G78: 0 | H78: 0 | I78: 0 | J78: 0 | K78: Total Outstanding Funding required
B79: Total | C79: 8.731149137e-10 | D79: 746481.9192 | E79: 9338884.036 | F79: 3113733.717 | G79: 1585321.162 | H79: 1585321.162 | I79: 2018183.524 | J79: 18387925.52 | K79: =IF(J79='Project Cost Summary'!M13, "OK","ERROR") -> OK
A81: balance | B81: 18100668.72 | C81: 0 | D81: =B81-C79-D79 -> 17354186.8 | E81: =D81-E79+D82 -> 8121667.33 | F81: =E81-F79+E82 -> 5084361.175 | G81: =F81-G79+F82 -> 3538658.098 | H81: =G81-H79+G82 -> 1979205.994 | I81: =H81-I79+H82 -> -22423.93844 | J81: =G81-G79+G82 -> 1979205.994 | K81: =B81 -> 18100668.72
A82: interest | C82: 0 | D82: =((B81+D81)/2)*$D86 -> 106364.5666 | E82: =((D81+E81)/2)*$D86 -> 76427.56239 | F82: =((E81+F81)/2)*$D86 -> 39618.08552 | G82: =((F81+G81)/2)*$D86 -> 25869.05782 | H82: =((G81+H81)/2)*$D86 -> 16553.59228 | I82: 5870.346166 | J82: =((G81+J81)/2)*$D86 -> 16553.59228 | K82: =SUM(D82:J82) -> 287256.803
K83: =K81+K82 -> 18387925.52 | L83: =J79-K83 -> 0
B85: Bank of England interest rate | D85: 0.001 | G85: NIC FUNDING REQUEST £ | I85: =K81 -> 18100668.72
B86: interest rate used in calculation | D86: =D85+0.5% -> 0.006
B87: RPI adjustment | C87: 2020/21 | D87: 2021/22 | E87: 2022/23 | F87: 2023/24 | G87: 2024/25 | H87: 2025/26 | I87: 2026/27
B88: Annual inflation | C88: 0.017 | D88: 0.0213 | E88: 0.0258 | F88: 0.028 | G88: 0.028 | H88: 0.028 | I88: 0.021
A89: n.b the NIC Funding Request calculation should use the Bank of England Base rate plus 0.5% on 30 June of the year in which the Full Submission is made.
D92: Bank of England Base Rate: https://www.bankofengland.co.uk/boeapps/iadb/Repo.asp
D93: RPI Forecast 2020/21 - 2026/27 : https://www.gov.uk/government/statistics/forecasts-for-the-uk-economy-may-2020
D94: RPI for 2025/26 and thereafter is an extension from 2024/25 as no further consistent forecast is available.

Sheet Direct Benefits
A1: Direct Benefits
A3: Direct Benefit: Any benefits of the Project accruing to the Licensee during the Project Implementation, comprising any expenditure included within the Network Lincesee Business plan for RIIO-T1 or ED1 that will be saved as a result of undertaking the project
B7: Description of Direct Benefit
C8: 2020/21 | D8: 2021/22 | E8: 2022/23 | F8: 2023/24 | G8: 2024/25 | H8: 2025/26 | I8: 2026/27 | J8: Total
J9: =SUM(C9:I9) -> 0
J10: =SUM(C10:I10) -> 0
B11: Total Direct Benefits | C11: =SUM(C9:C10) -> 0 | D11: 0 | E11: 0 | F11: 0 | G11: 0 | H11: 0 | I11: 0 | J11: 0
B14: n.b. These are Direct Benefits associated with the Project itself, not the wider deployment of the Solution and therefore should not extend beyond the Project period.

Sheet Project Cost Summary
A1: Project Cost Summary
C2: Total
C3: Cost type
C4: Labour | D4: Equipment | E4: Contractors | F4: IT | G4: IPR Costs | H4: Travel & Expenses | I4: Payments to users | J4: Contingency | K4: Decommissioning | L4: Other | M4: Total
B5: Total Project Cost | C5: =SUM(C18+C31+C44+C57+C70+C83+C96) -> 2665362 | D5: 10702866.56 | E5: 8836676.5 | F5: 0 | G5: 0 | H5: 0 | I5: 4192000 | J5: 1388965.673 | K5: 0 | L5: 0 | M5: =SUM(C5:L5) -> 27785870.73
B6: Project Partner 1 | C6: =SUM(C19+C32+C45+C58+C71+C84+C97) -> 0 | D6: 5665387.213 | E6: 466008.7889 | F6: 0 | G6: 0 | H6: 0 | I6: 0 | J6: 723446.3735 | K6: 0 | L6: 0 | M6: =SUM(C6:L6) -> 6854842.375
B7: Project Partner 2 | C7: =SUM(C20+C33+C46+C59+C72+C85+C98) -> 0 | D7: 0 | E7: 0 | F7: 0 | G7: 0 | H7: 0 | I7: 0 | J7: 0 | K7: 0 | L7: 0 | M7: 0
B8: Project Partner 3 | C8: =SUM(C21+C34+C47+C60+C73+C86+C99) -> 0 | D8: 0 | E8: 0 | F8: 0 | G8: 0 | H8: 0 | I8: 0 | J8: 0 | K8: 0 | L8: 0 | M8: 0
B9: External Funding | C9: =SUM(C22+C35+C48+C61+C74+C87+C100) -> 0 | D9: 5665387.213 | E9: 466008.7889 | F9: 0 | G9: 0 | H9: 0 | I9: 0 | J9: 723446.3735 | K9: 0 | L9: 0 | M9: =SUM(C9:L9) -> 6854842.375
B10: Licensee extra contribution | C10: =SUM(C23+C36+C49+C62+C75+C88+C101) -> 0 | D10: 413239.7875 | E10: 33991.21113 | F10: 0 | G10: 0 | H10: 0 | I10: 0 | J10: 52769.00138 | K10: 0 | L10: 0 | M10: 500000
B11: Initial Net Funding Required | C11: =SUM(C24+C37+C50+C63+C76+C89+C102) -> 2665362 | D11: 4624239.56 | E11: 8336676.5 | F11: 0 | G11: 0 | H11: 0 | I11: 4192000 | J11: 612750.2976 | K11: 0 | L11: 0 | M11: 20431028.36 | O11: Check Total Initial Net Funding Required matches that on the Second Tier Funding Request tab
B12: Licensee Compulsory Contribution / Direct Benefits | C12: =SUM(C25+C38+C51+C64+C77+C90+C103) -> 459748.946 | D12: 269944.6262 | E12: 1251082.595 | F12: 0 | G12: 0 | H12: 0 | I12: 0 | J12: 62326.66909 | K12: 0 | L12: 0 | M12: 2043102.836 | O12: =IF(ABS(M11-'NIC Funding Request'!J49)<0.01,"OK","ERROR") -> OK
B13: Outstanding Funding Required | C13: =SUM(C26+C39+C52+C65+C78+C91+C104) -> 2205613.054 | D13: 4354294.934 | E13: 7085593.905 | F13: 0 | G13: 0 | H13: 0 | I13: 4192000 | J13: 550423.6285 | K13: 0 | L13: 0 | M13: =SUM(C13:L13) -> 18387925.52
C15: 2020/21
C16: Cost type
C17: Labour | D17: Equipment | E17: Contractors | F17: IT | G17: IPR Costs | H17: Travel & Expenses | I17: Payments to users | J17: Contingency | K17: Decommissioning | L17: Other | M17: Total
B18: Total Project Cost | C18: ='2020-2021'!G13 -> 0 | D18: ='2020-2021'!H13 -> 6078627 | E18: ='2020-2021'!I13 -> 500000 | F18: ='2020-2021'!J13 -> 0 | G18: ='2020-2021'!K13 -> 0 | H18: ='2020-2021'!L13 -> 0 | I18: ='2020-2021'!M13 -> 0 | J18: ='2020-2021'!N13 -> 776215.3749 | K18: ='2020-2021'!O13 -> 0 | L18: ='2020-2021'!P13 -> 0 | M18: =SUM(C18:L18) -> 7354842.375
B19: Project Partner 1 | C19: ='2020-2021'!AK13 -> 0 | D19: ='2020-2021'!AL13 -> 5665387.213 | E19: ='2020-2021'!AM13 -> 466008.7889 | F19: ='2020-2021'!AN13 -> 0 | G19: ='2020-2021'!AO13 -> 0 | H19: ='2020-2021'!AP13 -> 0 | I19: ='2020-2021'!AQ13 -> 0 | J19: ='2020-2021'!AR13 -> 723446.3735 | K19: ='2020-2021'!AS13 -> 0 | L19: ='2020-2021'!AT13 -> 0 | M19: 6854842.375
B20: Project Partner 2 | C20: ='2020-2021'!AV13 -> 0 | D20: ='2020-2021'!AW13 -> 0 | E20: ='2020-2021'!AX13 -> 0 | F20: ='2020-2021'!AY13 -> 0 | G20: ='2020-2021'!AZ13 -> 0 | H20: ='2020-2021'!BA13 -> 0 | I20: ='2020-2021'!BB13 -> 0 | J20: ='2020-2021'!BC13 -> 0 | K20: ='2020-2021'!BD13 -> 0 | L20: ='2020-2021'!BE13 -> 0 | M20: 0
B21: Project Partner 3 | C21: ='2020-2021'!BG13 -> 0 | D21: ='2020-2021'!BH13 -> 0 | E21: ='2020-2021'!BI13 -> 0 | F21: ='2020-2021'!BJ13 -> 0 | G21: ='2020-2021'!BK13 -> 0 | H21: ='2020-2021'!BL13 -> 0 | I21: ='2020-2021'!BM13 -> 0 | J21: ='2020-2021'!BN13 -> 0 | K21: ='2020-2021'!BO13 -> 0 | L21: ='2020-2021'!BP13 -> 0 | M21: 0
B22: External Funding | C22: =SUM(C19:C21) -> 0 | D22: 5665387.213 | E22: 466008.7889 | F22: 0 | G22: 0 | H22: 0 | I22: 0 | J22: 723446.3735 | K22: 0 | L22: 0 | M22: =SUM(C9:L9) -> 6854842.375
B23: Licensee extra contribution | C23: ='2020-2021'!BR13 -> 0 | D23: ='2020-2021'!BS13 -> 413239.7875 | E23: ='2020-2021'!BT13 -> 33991.21113 | F23: ='2020-2021'!BU13 -> 0 | G23: ='2020-2021'!BV13 -> 0 | H23: ='2020-2021'!BW13 -> 0 | I23: ='2020-2021'!BX13 -> 0 | J23: ='2020-2021'!BY13 -> 52769.00138 | K23: ='2020-2021'!BZ13 -> 0 | L23: ='2020-2021'!CA13 -> 0 | M23: 500000
B24: Initial Net Funding Required | C24: =C18-C22-C23 -> 0 | D24: =D18-D22-D23 -> 0 | E24: 0 | F24: 0 | G24: 0 | H24: 0 | I24: 0 | J24: 7.275957614e-11 | K24: 0 | L24: 0 | M24: 7.275957614e-11
B25: Licensee Compulsory Contribution / Direct Benefits | C25: ='2020-2021'!Z13 -> 0 | D25: ='2020-2021'!AA13 -> 0 | E25: ='2020-2021'!AB13 -> 0 | F25: ='2020-2021'!AC13 -> 0 | G25: ='2020-2021'!AD13 -> 0 | H25: ='2020-2021'!AE13 -> 0 | I25: ='2020-2021'!AF13 -> 0 | J25: ='2020-2021'!AG13 -> 0 | K25: ='2020-2021'!AH13 -> 0 | L25: ='2020-2021'!AI13 -> 0 | M25: 0
B26: Outstanding Funding Required | C26: ='2020-2021'!CC13 -> 0 | D26: ='2020-2021'!CD13 -> 0 | E26: ='2020-2021'!CE13 -> 0 | F26: ='2020-2021'!CF13 -> 0 | G26: ='2020-2021'!CG13 -> 0 | H26: ='2020-2021'!CH13 -> 0 | I26: ='2020-2021'!CI13 -> 0 | J26: ='2020-2021'!CJ13 -> 0 | K26: ='2020-2021'!CK13 -> 0 | L26: ='2020-2021'!CL13 -> 0 | M26: 0
C28: 2021/22
C29: Cost type
C30: Labour | D30: Equipment | E30: Contractors | F30: IT | G30: IPR Costs | H30: Travel & Expenses | I30: Payments to users | J30: Contingency | K30: Decommissioning | L30: Other | M30: Total
B31: Total Project Cost | C31: ='2021-2022'!G13 -> 492969 | D31: ='2021-2022'!H13 -> 302658.3333 | E31: ='2021-2022'!I13 -> 1890605 | F31: ='2021-2022'!J13 -> 0 | G31: ='2021-2022'!K13 -> 0 | H31: ='2021-2022'!L13 -> 0 | I31: ='2021-2022'!M13 -> 0 | J31: ='2021-2022'!N13 -> 103352.4216 | K31: ='2021-2022'!O13 -> 0 | L31: ='2021-2022'!P13 -> 0 | M31: =SUM(C31:L31) -> 2789584.755
B32: Project Partner 1 | C32: ='2021-2022'!AK13 -> 0 | D32: ='2021-2022'!AL13 -> 0 | E32: ='2021-2022'!AM13 -> 0 | F32: ='2021-2022'!AN13 -> 0 | G32: ='2021-2022'!AO13 -> 0 | H32: ='2021-2022'!AP13 -> 0 | I32: ='2021-2022'!AQ13 -> 0 | J32: ='2021-2022'!AR13 -> 0 | K32: ='2021-2022'!AS13 -> 0 | L32: ='2021-2022'!AT13 -> 0 | M32: 0
B33: Project Partner 2 | C33: ='2021-2022'!AV13 -> 0 | D33: ='2021-2022'!AW13 -> 0 | E33: ='2021-2022'!AX13 -> 0 | F33: ='2021-2022'!AY13 -> 0 | G33: ='2021-2022'!AZ13 -> 0 | H33: ='2021-2022'!BA13 -> 0 | I33: ='2021-2022'!BB13 -> 0 | J33: ='2021-2022'!BC13 -> 0 | K33: ='2021-2022'!BD13 -> 0 | L33: ='2021-2022'!BE13 -> 0 | M33: 0
B34: Project Partner 3 | C34: ='2021-2022'!BG13 -> 0 | D34: ='2021-2022'!BH13 -> 0 | E34: ='2021-2022'!BI13 -> 0 | F34: ='2021-2022'!BJ13 -> 0 | G34: ='2021-2022'!BK13 -> 0 | H34: ='2021-2022'!BL13 -> 0 | I34: ='2021-2022'!BM13 -> 0 | J34: ='2021-2022'!BN13 -> 0 | K34: ='2021-2022'!BO13 -> 0 | L34: ='2021-2022'!BP13 -> 0 | M34: 0
B35: External Funding | C35: =SUM(C32:C34) -> 0 | D35: 0 | E35: 0 | F35: 0 | G35: 0 | H35: 0 | I35: 0 | J35: 0 | K35: 0 | L35: 0 | M35: 0
B36: Licensee extra contribution | C36: ='2021-2022'!BR13 -> 0 | D36: ='2021-2022'!BS13 -> 0 | E36: ='2021-2022'!BT13 -> 0 | F36: ='2021-2022'!BU13 -> 0 | G36: ='2021-2022'!BV13 -> 0 | H36: ='2021-2022'!BW13 -> 0 | I36: ='2021-2022'!BX13 -> 0 | J36: ='2021-2022'!BY13 -> 0 | K36: ='2021-2022'!BZ13 -> 0 | L36: ='2021-2022'!CA13 -> 0 | M36: 0
B37: Initial Net Funding Required | C37: =C31-C35-C36 -> 492969 | D37: =D31-D35-D36 -> 302658.3333 | E37: 1890605 | F37: =F31-F35-F36 -> 0 | G37: 0 | H37: 0 | I37: 0 | J37: 103352.4216 | K37: 0 | L37: 0 | M37: 2789584.755
B38: Licensee Compulsory Contribution / Direct Benefits | C38: ='2021-2022'!Z13 -> 459748.946 | D38: ='2021-2022'!AA13 -> 269944.6262 | E38: ='2021-2022'!AB13 -> 1251082.595 | F38: ='2021-2022'!AC13 -> 0 | G38: ='2021-2022'!AD13 -> 0 | H38: ='2021-2022'!AE13 -> 0 | I38: ='2021-2022'!AF13 -> 0 | J38: ='2021-2022'!AG13 -> 62326.66909 | K38: ='2021-2022'!AH13 -> 0 | L38: ='2021-2022'!AI13 -> 0 | M38: 2043102.836
B39: Outstanding Funding Required | C39: ='2021-2022'!CC13 -> 33220.05402 | D39: ='2021-2022'!CD13 -> 32713.70717 | E39: ='2021-2022'!CE13 -> 639522.4055 | F39: ='2021-2022'!CF13 -> 0 | G39: ='2021-2022'!CG13 -> 0 | H39: ='2021-2022'!CH13 -> 0 | I39: ='2021-2022'!CI13 -> 0 | J39: ='2021-2022'!CJ13 -> 41025.75253 | K39: ='2021-2022'!CK13 -> 0 | L39: ='2021-2022'!CL13 -> 0 | M39: 746481.9192
C41: 2022/23
C42: Cost type
C43: Labour | D43: Equipment | E43: Contractors | F43: IT | G43: IPR Costs | H43: Travel & Expenses | I43: Payments to users | J43: Contingency | K43: Decommissioning | L43: Other | M43: Total
B44: Total Project Cost | C44: ='2022-2023'!G13 -> 838477.8 | D44: ='2022-2023'!H13 -> 2709933.293 | E44: ='2022-2023'!I13 -> 4565130.7 | F44: ='2022-2023'!J13 -> 0 | G44: ='2022-2023'!K13 -> 0 | H44: ='2022-2023'!L13 -> 0 | I44: ='2022-2023'!M13 -> 838400 | J44: ='2022-2023'!N13 -> 386942.2427 | K44: ='2022-2023'!O13 -> 0 | L44: ='2022-2023'!P13 -> 0 | M44: =SUM(C44:L44) -> 9338884.036
B45: Project Partner 1 | C45: ='2022-2023'!AK13 -> 0 | D45: ='2022-2023'!AL13 -> 0 | E45: ='2022-2023'!AM13 -> 0 | F45: ='2022-2023'!AN13 -> 0 | G45: ='2022-2023'!AO13 -> 0 | H45: ='2022-2023'!AP13 -> 0 | I45: ='2022-2023'!AQ13 -> 0 | J45: ='2022-2023'!AR13 -> 0 | K45: ='2022-2023'!AS13 -> 0 | L45: ='2022-2023'!AT13 -> 0 | M45: =SUM(C45:L45) -> 0
B46: Project Partner 2 | C46: ='2022-2023'!AV13 -> 0 | D46: ='2022-2023'!AW13 -> 0 | E46: ='2022-2023'!AX13 -> 0 | F46: ='2022-2023'!AY13 -> 0 | G46: ='2022-2023'!AZ13 -> 0 | H46: ='2022-2023'!BA13 -> 0 | I46: ='2022-2023'!BB13 -> 0 | J46: ='2022-2023'!BC13 -> 0 | K46: ='2022-2023'!BD13 -> 0 | L46: ='2022-2023'!BE13 -> 0 | M46: 0
B47: Project Partner 3 | C47: ='2022-2023'!BG13 -> 0 | D47: ='2022-2023'!BH13 -> 0 | E47: ='2022-2023'!BI13 -> 0 | F47: ='2022-2023'!BJ13 -> 0 | G47: ='2022-2023'!BK13 -> 0 | H47: ='2022-2023'!BL13 -> 0 | I47: ='2022-2023'!BM13 -> 0 | J47: ='2022-2023'!BN13 -> 0 | K47: ='2022-2023'!BO13 -> 0 | L47: ='2022-2023'!BP13 -> 0 | M47: =SUM(C47:L47) -> 0
B48: External Funding | C48: =SUM(C45:C47) -> 0 | D48: 0 | E48: 0 | F48: 0 | G48: 0 | H48: 0 | I48: 0 | J48: 0 | K48: 0 | L48: 0 | M48: =SUM(C48:L48) -> 0
B49: Licensee extra contribution | C49: ='2022-2023'!BR13 -> 0 | D49: ='2022-2023'!BS13 -> 0 | E49: ='2022-2023'!BT13 -> 0 | F49: ='2022-2023'!BU13 -> 0 | G49: ='2022-2023'!BV13 -> 0 | H49: ='2022-2023'!BW13 -> 0 | I49: ='2022-2023'!BX13 -> 0 | J49: ='2022-2023'!BY13 -> 0 | K49: ='2022-2023'!BZ13 -> 0 | L49: ='2022-2023'!CA13 -> 0 | M49: 0
B50: Initial Net Funding Required | C50: =C44-C48-C49 -> 838477.8 | D50: =D44-D48-D49 -> 2709933.293 | E50: 4565130.7 | F50: 0 | G50: 0 | H50: 0 | I50: 838400 | J50: 386942.2427 | K50: 0 | L50: 0 | M50: 9338884.036
B51: Licensee Compulsory Contribution / Direct Benefits | C51: ='2022-2023'!Z13 -> 0 | D51: ='2022-2023'!AA13 -> 0 | E51: ='2022-2023'!AB13 -> 0 | F51: ='2022-2023'!AC13 -> 0 | G51: ='2022-2023'!AD13 -> 0 | H51: ='2022-2023'!AE13 -> 0 | I51: ='2022-2023'!AF13 -> 0 | J51: ='2022-2023'!AG13 -> 0 | K51: ='2022-2023'!AH13 -> 0 | L51: ='2022-2023'!AI13 -> 0 | M51: 0
B52: Outstanding Funding Required | C52: ='2022-2023'!CC13 -> 838477.8 | D52: ='2022-2023'!CD13 -> 2709933.293 | E52: ='2022-2023'!CE13 -> 4565130.7 | F52: ='2022-2023'!CF13 -> 0 | G52: ='2022-2023'!CG13 -> 0 | H52: ='2022-2023'!CH13 -> 0 | I52: ='2022-2023'!CI13 -> 838400 | J52: ='2022-2023'!CJ13 -> 386942.2427 | K52: ='2022-2023'!CK13 -> 0 | L52: ='2022-2023'!CL13 -> 0 | M52: =SUM(C52:L52) -> 9338884.036
C54: 2023/24
C55: Cost type
C56: Labour | D56: Equipment | E56: Contractors | F56: IT | G56: IPR Costs | H56: Travel & Expenses | I56: Payments to users | J56: Contingency | K56: Decommissioning | L56: Other | M56: Total
B57: Total Project Cost | C57: ='2023-2024'!G13 -> 333478.8 | D57: ='2023-2024'!H13 -> 1272765.733 | E57: ='2023-2024'!I13 -> 609687.7 | F57: ='2023-2024'!J13 -> 0 | G57: ='2023-2024'!K13 -> 0 | H57: ='2023-2024'!L13 -> 0 | I57: ='2023-2024'!M13 -> 838400 | J57: ='2023-2024'!N13 -> 59401.48416 | K57: ='2023-2024'!O13 -> 0 | L57: ='2023-2024'!P13 -> 0 | M57: =SUM(C57:L57) -> 3113733.717
B58: Project Partner 1 | C58: ='2023-2024'!AK13 -> 0 | D58: ='2023-2024'!AL13 -> 0 | E58: ='2023-2024'!AM13 -> 0 | F58: ='2023-2024'!AN13 -> 0 | G58: ='2023-2024'!AO13 -> 0 | H58: ='2023-2024'!AP13 -> 0 | I58: ='2023-2024'!AQ13 -> 0 | J58: ='2023-2024'!AR13 -> 0 | K58: ='2023-2024'!AS13 -> 0 | L58: ='2023-2024'!AT13 -> 0 | M58: 0
B59: Project Partner 2 | C59: ='2023-2024'!AV13 -> 0 | D59: ='2023-2024'!AW13 -> 0 | E59: ='2023-2024'!AX13 -> 0 | F59: ='2023-2024'!AY13 -> 0 | G59: ='2023-2024'!AZ13 -> 0 | H59: ='2023-2024'!BA13 -> 0 | I59: ='2023-2024'!BB13 -> 0 | J59: ='2023-2024'!BC13 -> 0 | K59: ='2023-2024'!BD13 -> 0 | L59: ='2023-2024'!BE13 -> 0 | M59: 0
B60: Project Partner 3 | C60: ='2023-2024'!BG13 -> 0 | D60: ='2023-2024'!BH13 -> 0 | E60: ='2023-2024'!BI13 -> 0 | F60: ='2023-2024'!BJ13 -> 0 | G60: ='2023-2024'!BK13 -> 0 | H60: ='2023-2024'!BL13 -> 0 | I60: ='2023-2024'!BM13 -> 0 | J60: ='2023-2024'!BN13 -> 0 | K60: ='2023-2024'!BO13 -> 0 | L60: ='2023-2024'!BP13 -> 0 | M60: 0
B61: External Funding | C61: =SUM(C58:C60) -> 0 | D61: 0 | E61: 0 | F61: 0 | G61: 0 | H61: 0 | I61: 0 | J61: 0 | K61: 0 | L61: 0 | M61: 0
B62: Licensee extra contribution | C62: ='2023-2024'!BR13 -> 0 | D62: ='2023-2024'!BS13 -> 0 | E62: ='2023-2024'!BT13 -> 0 | F62: ='2023-2024'!BU13 -> 0 | G62: ='2023-2024'!BV13 -> 0 | H62: ='2023-2024'!BW13 -> 0 | I62: ='2023-2024'!BX13 -> 0 | J62: ='2023-2024'!BY13 -> 0 | K62: ='2023-2024'!BZ13 -> 0 | L62: ='2023-2024'!CA13 -> 0 | M62: 0
B63: Initial Net Funding Required | C63: =C57-C61-C62 -> 333478.8 | D63: =D57-D61-D62 -> 1272765.733 | E63: 609687.7 | F63: 0 | G63: 0 | H63: 0 | I63: 838400 | J63: 59401.48416 | K63: 0 | L63: 0 | M63: 3113733.717
B64: Licensee Compulsory Contribution | C64: ='2023-2024'!Z13 -> 0 | D64: ='2023-2024'!AA13 -> 0 | E64: ='2023-2024'!AB13 -> 0 | F64: ='2023-2024'!AC13 -> 0 | G64: ='2023-2024'!AD13 -> 0 | H64: ='2023-2024'!AE13 -> 0 | I64: ='2023-2024'!AF13 -> 0 | J64: ='2023-2024'!AG13 -> 0 | K64: ='2023-2024'!AH13 -> 0 | L64: ='2023-2024'!AI13 -> 0 | M64: 0
B65: Outstanding Funding Required | C65: ='2023-2024'!CC13 -> 333478.8 | D65: ='2023-2024'!CD13 -> 1272765.733 | E65: ='2023-2024'!CE13 -> 609687.7 | F65: ='2023-2024'!CF13 -> 0 | G65: ='2023-2024'!CG13 -> 0 | H65: ='2023-2024'!CH13 -> 0 | I65: ='2023-2024'!CI13 -> 838400 | J65: ='2023-2024'!CJ13 -> 59401.48416 | K65: ='2023-2024'!CK13 -> 0 | L65: ='2023-2024'!CL13 -> 0 | M65: 3113733.717
C67: 2024/25
C68: Cost type
C69: Labour | D69: Equipment | E69: Contractors | F69: IT | G69: IPR Costs | H69: Travel & Expenses | I69: Payments to users | J69: Contingency | K69: Decommissioning | L69: Other | M69: Total
B70: Total Project Cost | C70: ='2024-2025'!G13 -> 333478.8 | D70: ='2024-2025'!H13 -> 55460.73333 | E70: ='2024-2025'!I13 -> 340417.7 | F70: ='2024-2025'!J13 -> 0 | G70: ='2024-2025'!K13 -> 0 | H70: ='2024-2025'!L13 -> 0 | I70: ='2024-2025'!M13 -> 838400 | J70: ='2024-2025'!N13 -> 17563.92903 | K70: ='2024-2025'!O13 -> 0 | L70: ='2024-2025'!P13 -> 0 | M70: =SUM(C70:L70) -> 1585321.162
B71: Project Partner 1 | C71: ='2024-2025'!AK13 -> 0 | D71: ='2024-2025'!AL13 -> 0 | E71: ='2024-2025'!AM13 -> 0 | F71: ='2024-2025'!AN13 -> 0 | G71: ='2024-2025'!AO13 -> 0 | H71: ='2024-2025'!AP13 -> 0 | I71: ='2024-2025'!AQ13 -> 0 | J71: ='2024-2025'!AR13 -> 0 | K71: ='2024-2025'!AS13 -> 0 | L71: ='2024-2025'!AT13 -> 0 | M71: 0
B72: Project Partner 2 | C72: ='2024-2025'!AV13 -> 0 | D72: ='2024-2025'!AW13 -> 0 | E72: ='2024-2025'!AX13 -> 0 | F72: ='2024-2025'!AY13 -> 0 | G72: ='2024-2025'!AZ13 -> 0 | H72: ='2024-2025'!BA13 -> 0 | I72: ='2024-2025'!BB13 -> 0 | J72: ='2024-2025'!BC13 -> 0 | K72: ='2024-2025'!BD13 -> 0 | L72: ='2024-2025'!BE13 -> 0 | M72: 0
B73: Project Partner 3 | C73: ='2024-2025'!BG13 -> 0 | D73: ='2023-2024'!BH26 -> 0 | E73: ='2023-2024'!BI26 -> 0 | F73: ='2023-2024'!BJ26 -> 0 | G73: ='2023-2024'!BK26 -> 0 | H73: ='2023-2024'!BL26 -> 0 | I73: ='2023-2024'!BM26 -> 0 | J73: ='2023-2024'!BN26 -> 0 | K73: ='2023-2024'!BO26 -> 0 | L73: ='2023-2024'!BP26 -> 0 | M73: 0
B74: External Funding | C74: =SUM(C71:C73) -> 0 | D74: 0 | E74: 0 | F74: 0 | G74: 0 | H74: 0 | I74: 0 | J74: 0 | K74: 0 | L74: =SUM(L71:L73) -> 0 | M74: 0
B75: Licensee extra contribution | C75: ='2024-2025'!BR13 -> 0 | D75: ='2024-2025'!BS13 -> 0 | E75: ='2024-2025'!BT13 -> 0 | F75: ='2024-2025'!BU13 -> 0 | G75: ='2024-2025'!BV13 -> 0 | H75: ='2024-2025'!BW13 -> 0 | I75: ='2024-2025'!BX13 -> 0 | J75: ='2024-2025'!BY13 -> 0 | K75: ='2024-2025'!BZ13 -> 0 | L75: ='2024-2025'!CA13 -> 0 | M75: 0
B76: Initial Net Funding Required | C76: =C70-C74-C75 -> 333478.8 | D76: =D70-D74-D75 -> 55460.73333 | E76: 340417.7 | F76: 0 | G76: 0 | H76: 0 | I76: 838400 | J76: 17563.92903 | K76: 0 | L76: 0 | M76: 1585321.162
B77: Licensee Compulsory Contribution | C77: ='2024-2025'!Z13 -> 0 | D77: ='2024-2025'!AA13 -> 0 | E77: ='2024-2025'!AB13 -> 0 | F77: ='2024-2025'!AC13 -> 0 | G77: ='2024-2025'!AD13 -> 0 | H77: ='2024-2025'!AE13 -> 0 | I77: ='2024-2025'!AF13 -> 0 | J77: ='2024-2025'!AG13 -> 0 | K77: ='2024-2025'!AH13 -> 0 | L77: ='2024-2025'!AI13 -> 0 | M77: 0
B78: Outstanding Funding Required | C78: ='2024-2025'!CC13 -> 333478.8 | D78: ='2024-2025'!CD13 -> 55460.73333 | E78: ='2024-2025'!CE13 -> 340417.7 | F78: ='2024-2025'!CF13 -> 0 | G78: ='2024-2025'!CG13 -> 0 | H78: ='2024-2025'!CH13 -> 0 | I78: ='2024-2025'!CI13 -> 838400 | J78: ='2024-2025'!CJ13 -> 17563.92903 | K78: ='2024-2025'!CK13 -> 0 | L78: ='2024-2025'!CL13 -> 0 | M78: 1585321.162
C80: 2025/26
C81: Cost type
C82: Labour | D82: Equipment | E82: Contractors | F82: IT | G82: IPR Costs | H82: Travel & Expenses | I82: Payments to users | J82: Contingency | K82: Decommissioning | L82: Other | M82: Total
B83: Total Project Cost | C83: ='2025-2026'!G13 -> 333478.8 | D83: ='2025-2026'!H13 -> 55460.73333 | E83: ='2025-2026'!I13 -> 340417.7 | F83: ='2025-2026'!J13 -> 0 | G83: ='2025-2026'!K13 -> 0 | H83: ='2025-2026'!L13 -> 0 | I83: ='2025-2026'!M13 -> 838400 | J83: ='2025-2026'!N13 -> 17563.92903 | K83: ='2025-2026'!O13 -> 0 | L83: ='2025-2026'!P13 -> 0 | M83: =SUM(C83:L83) -> 1585321.162
B84: Project Partner 1 | C84: ='2025-2026'!AK13 -> 0 | D84: ='2025-2026'!AL13 -> 0 | E84: ='2025-2026'!AM13 -> 0 | F84: ='2025-2026'!AN13 -> 0 | G84: ='2025-2026'!AO13 -> 0 | H84: ='2025-2026'!AP13 -> 0 | I84: ='2025-2026'!AQ13 -> 0 | J84: ='2025-2026'!AR13 -> 0 | K84: ='2025-2026'!AS13 -> 0 | L84: ='2025-2026'!AT13 -> 0 | M84: 0
B85: Project Partner 2 | C85: ='2025-2026'!AV13 -> 0 | D85: ='2025-2026'!AW13 -> 0 | E85: ='2025-2026'!AX13 -> 0 | F85: ='2025-2026'!AY13 -> 0 | G85: ='2025-2026'!AZ13 -> 0 | H85: ='2025-2026'!BA13 -> 0 | I85: ='2025-2026'!BB13 -> 0 | J85: ='2025-2026'!BC13 -> 0 | K85: ='2025-2026'!BD13 -> 0 | L85: ='2025-2026'!BE13 -> 0 | M85: 0
B86: Project Partner 3 | C86: ='2025-2026'!BG13 -> 0 | D86: ='2025-2026'!BH39 -> 0 | E86: ='2025-2026'!BI39 -> 0 | F86: ='2025-2026'!BJ39 -> 0 | G86: ='2025-2026'!BK39 -> 0 | H86: ='2025-2026'!BL39 -> 0 | I86: ='2025-2026'!BM39 -> 0 | J86: ='2025-2026'!BN39 -> 0 | K86: ='2025-2026'!BO39 -> 0 | L86: ='2025-2026'!BP39 -> 0 | M86: 0
B87: External Funding | C87: =SUM(C84:C86) -> 0 | D87: 0 | E87: 0 | F87: 0 | G87: 0 | H87: 0 | I87: 0 | J87: 0 | K87: 0 | L87: =SUM(L84:L86) -> 0 | M87: 0
B88: Licensee extra contribution | C88: ='2025-2026'!BR13 -> 0 | D88: ='2025-2026'!BS13 -> 0 | E88: ='2025-2026'!BT13 -> 0 | F88: ='2025-2026'!BU13 -> 0 | G88: ='2025-2026'!BV13 -> 0 | H88: ='2025-2026'!BW13 -> 0 | I88: ='2025-2026'!BX13 -> 0 | J88: ='2025-2026'!BY13 -> 0 | K88: ='2025-2026'!BZ13 -> 0 | L88: ='2025-2026'!CA13 -> 0 | M88: 0
B89: Initial Net Funding Required | C89: =C83-C87-C88 -> 333478.8 | D89: =D83-D87-D88 -> 55460.73333 | E89: 340417.7 | F89: 0 | G89: 0 | H89: 0 | I89: 838400 | J89: 17563.92903 | K89: 0 | L89: 0 | M89: =SUM(C89:L89) -> 1585321.162
B90: Licensee Compulsory Contribution | C90: ='2025-2026'!Z13 -> 0 | D90: ='2025-2026'!AA13 -> 0 | E90: ='2025-2026'!AB13 -> 0 | F90: ='2025-2026'!AC13 -> 0 | G90: ='2025-2026'!AD13 -> 0 | H90: ='2025-2026'!AE13 -> 0 | I90: ='2025-2026'!AF13 -> 0 | J90: ='2025-2026'!AG13 -> 0 | K90: ='2025-2026'!AH13 -> 0 | L90: ='2025-2026'!AI13 -> 0 | M90: 0
B91: Outstanding Funding Required | C91: ='2025-2026'!CC13 -> 333478.8 | D91: ='2025-2026'!CD13 -> 55460.73333 | E91: ='2025-2026'!CE13 -> 340417.7 | F91: ='2025-2026'!CF13 -> 0 | G91: ='2025-2026'!CG13 -> 0 | H91: ='2025-2026'!CH13 -> 0 | I91: ='2025-2026'!CI13 -> 838400 | J91: ='2025-2026'!CJ13 -> 17563.92903 | K91: ='2025-2026'!CK13 -> 0 | L91: ='2025-2026'!CL13 -> 0 | M91: 1585321.162
C93: 2026/27
C94: Cost type
C95: Labour | D95: Equipment | E95: Contractors | F95: IT | G95: IPR Costs | H95: Travel & Expenses | I95: Payments to users | J95: Contingency | K95: Decommissioning | L95: Other | M95: Total
B96: Total Project Cost | C96: ='2026-2027'!G13 -> 333478.8 | D96: ='2026-2027'!H13 -> 227960.7333 | E96: ='2026-2027'!I13 -> 590417.7 | F96: ='2026-2027'!J13 -> 0 | G96: ='2026-2027'!K13 -> 0 | H96: ='2026-2027'!L13 -> 0 | I96: ='2026-2027'!M13 -> 838400 | J96: ='2026-2027'!N13 -> 27926.29112 | K96: ='2026-2027'!O13 -> 0 | L96: ='2026-2027'!P13 -> 0 | M96: =SUM(C96:L96) -> 2018183.524
B97: Project Partner 1 | C97: ='2026-2027'!AK13 -> 0 | D97: ='2026-2027'!AL13 -> 0 | E97: ='2026-2027'!AM13 -> 0 | F97: ='2026-2027'!AN13 -> 0 | G97: ='2026-2027'!AO13 -> 0 | H97: ='2026-2027'!AP13 -> 0 | I97: ='2026-2027'!AQ13 -> 0 | J97: ='2026-2027'!AR13 -> 0 | K97: ='2026-2027'!AS13 -> 0 | L97: ='2026-2027'!AT13 -> 0 | M97: 0
B98: Project Partner 2 | C98: ='2026-2027'!AV13 -> 0 | D98: ='2026-2027'!AW13 -> 0 | E98: ='2026-2027'!AX13 -> 0 | F98: ='2026-2027'!AY13 -> 0 | G98: ='2026-2027'!AZ13 -> 0 | H98: ='2026-2027'!BA13 -> 0 | I98: ='2026-2027'!BB13 -> 0 | J98: ='2026-2027'!BC13 -> 0 | K98: ='2026-2027'!BD13 -> 0 | L98: ='2026-2027'!BE13 -> 0 | M98: 0
B99: Project Partner 3 | C99: ='2026-2027'!BG13 -> 0 | D99: ='2026-2027'!BH13 -> 0 | E99: ='2026-2027'!BI13 -> 0 | F99: ='2026-2027'!BJ13 -> 0 | G99: ='2026-2027'!BK13 -> 0 | H99: ='2026-2027'!BL13 -> 0 | I99: ='2026-2027'!BM13 -> 0 | J99: ='2026-2027'!BN13 -> 0 | K99: ='2026-2027'!BO13 -> 0 | L99: ='2026-2027'!BP13 -> 0 | M99: 0
B100: External Funding | C100: =SUM(C97:C99) -> 0 | D100: 0 | E100: 0 | F100: 0 | G100: 0 | H100: 0 | I100: 0 | J100: 0 | K100: 0 | L100: =SUM(L97:L99) -> 0 | M100: 0
B101: Licensee extra contribution | C101: ='2026-2027'!BR13 -> 0 | D101: ='2026-2027'!BS13 -> 0 | E101: ='2026-2027'!BT13 -> 0 | F101: ='2026-2027'!BU13 -> 0 | G101: ='2026-2027'!BV13 -> 0 | H101: ='2026-2027'!BW13 -> 0 | I101: ='2026-2027'!BX13 -> 0 | J101: ='2026-2027'!BY13 -> 0 | K101: ='2026-2027'!BZ13 -> 0 | L101: ='2026-2027'!CA13 -> 0 | M101: 0
B102: Initial Net Funding Required | C102: =C96-C100-C101 -> 333478.8 | D102: =D96-D100-D101 -> 227960.7333 | E102: 590417.7 | F102: 0 | G102: 0 | H102: 0 | I102: 838400 | J102: 27926.29112 | K102: 0 | L102: 0 | M102: 2018183.524
B103: Licensee Compulsory Contribution | C103: ='2026-2027'!Z13 -> 0 | D103: ='2026-2027'!AA13 -> 0 | E103: ='2026-2027'!AB13 -> 0 | F103: ='2026-2027'!AC13 -> 0 | G103: ='2026-2027'!AD13 -> 0 | H103: ='2026-2027'!AE13 -> 0 | I103: ='2026-2027'!AF13 -> 0 | J103: ='2026-2027'!AG13 -> 0 | K103: ='2026-2027'!AH13 -> 0 | L103: ='2026-2027'!AI13 -> 0 | M103: 0
B104: Outstanding Funding Required | C104: ='2026-2027'!CC13 -> 333478.8 | D104: ='2026-2027'!CD13 -> 227960.7333 | E104: ='2026-2027'!CE13 -> 590417.7 | F104: ='2026-2027'!CF13 -> 0 | G104: ='2026-2027'!CG13 -> 0 | H104: ='2026-2027'!CH13 -> 0 | I104: ='2026-2027'!CI13 -> 838400 | J104: ='2026-2027'!CJ13 -> 27926.29112 | K104: ='2026-2027'!CK13 -> 0 | L104: ='2026-2027'!CL13 -> 0 | M104: 2018183.524

Sheet 2020-2021
B1: Project Costs in 2020-2021
G4: Total Cost £K | R4: Funding source % | Z4: Licensee Compulsory Contribution/Direct Benefits | AK4: Scottish Government | AV4: Project Partner 2 | BG4: Project Partner 3 | BR4: Licensee Extra Contribution | CC4: Outstanding Funding Required
G5: Labour | H5: Equipment | I5: Contractors | J5: IT | K5: IPR Costs | L5: Travel & Expenses | M5: Payments to users | N5: Contingency | O5: Decommissioning | P5: Other | R5: Licensee Compulsory Contribution /Direct Benefits | S5: Scottish Government | T5: Project Partner 2 | U5: Project Partner 3 | V5: Licensee Extra Contribution | W5: Oustanding Funding Required | X5: Total | Z5: Labour | AA5: Equipment | AB5: Contractors | AC5: IT | AD5: IPR Costs | AE5: Travel & Expenses | AF5: Payments to users | AG5: Contingency | AH5: Decommissioning | AI5: Other | AK5: Labour | AL5: Equipment | AM5: Contractors | AN5: IT | AO5: IPR Costs | AP5: Travel & Expenses | AQ5: Payments to users | AR5: Contingency | AS5: Decommissioning | AT5: Other | AV5: Labour | AW5: Equipment | AX5: Contractors | AY5: IT | AZ5: IPR Costs | BA5: Travel & Expenses | BB5: Payments to users | BC5: Contingency | BD5: Decommissioning | BE5: Other | BG5: Labour | BH5: Equipment | BI5: Contractors | BJ5: IT | BK5: IPR Costs | BL5: Travel & Expenses | BM5: Payments to users | BN5: Contingency | BO5: Decommissioning | BP5: Other | BR5: Labour | BS5: Equipment | BT5: Contractors | BU5: IT | BV5: IPR Costs | BW5: Travel & Expenses | BX5: Payments to users | BY5: Contingency | BZ5: Decommissioning | CA5: Other | CC5: Labour | CD5: Equipment | CE5: Contractors | CF5: IT | CG5: IPR Costs | CH5: Travel & Expenses | CI5: Payments to users | CJ5: Contingency | CK5: Decommissioning | CL5: Other
B6: Description | C6: Task | D6: Project Workstream
B7: Pre NIC | H7: 6078627 | I7: 500000 | N7: 776215.3749 | S7: 0.9320175777 | V7: 0.06798242226 | X7: =SUM(R7:W7) -> 1 | Z7: =$R7*G7 -> 0 | AA7: =$R7*H7 -> 0 | AB7: 0 | AC7: 0 | AD7: 0 | AE7: 0 | AF7: 0 | AG7: 0 | AH7: 0 | AI7: 0 | AK7: =$S7*G7 -> 0 | AL7: =$S7*H7 -> 5665387.213 | AM7: 466008.7889 | AN7: 0 | AO7: 0 | AP7: 0 | AQ7: 0 | AR7: 723446.3735 | AS7: 0 | AT7: 0 | AV7: =$T7*G7 -> 0 | AW7: =$T7*H7 -> 0 | AX7: 0 | AY7: 0 | AZ7: 0 | BA7: 0 | BB7: 0 | BC7: 0 | BD7: 0 | BE7: 0 | BG7: =$U7*G7 -> 0 | BH7: =$U7*H7 -> 0 | BI7: 0 | BJ7: 0 | BK7: 0 | BL7: 0 | BM7: 0 | BN7: 0 | BO7: 0 | BP7: 0 | BR7: =$V7*G7 -> 0 | BS7: =$V7*H7 -> 413239.7875 | BT7: 33991.21113 | BU7: 0 | BV7: 0 | BW7: 0 | BX7: 0 | BY7: 52769.00138 | BZ7: 0 | CA7: 0 | CC7: =$W7*G7 -> 0 | CD7: =$W7*H7 -> 0 | CE7: 0 | CF7: 0 | CG7: 0 | CH7: 0 | CI7: 0 | CJ7: 0 | CK7: 0 | CL7: 0
B8: Pre Construction and Demonstration Facility | G8: 0 | H8: 0 | I8: 0 | N8: 0 | X8: =SUM(R8:W8) -> 0 | Z8: =$R8*G8 -> 0 | AA8: =$R8*H8 -> 0 | AB8: =$R8*I8 -> 0 | AC8: =$R8*J8 -> 0 | AD8: =$R8*K8 -> 0 | AE8: =$R8*L8 -> 0 | AF8: =$R8*M8 -> 0 | AG8: =$R8*N8 -> 0 | AH8: =$R8*O8 -> 0 | AI8: =$R8*P8 -> 0 | AK8: =$S8*G8 -> 0 | AL8: =$S8*H8 -> 0 | AM8: =$S8*I8 -> 0 | AN8: =$S8*J8 -> 0 | AO8: =$S8*K8 -> 0 | AP8: =$S8*L8 -> 0 | AQ8: =$S8*M8 -> 0 | AR8: =$S8*N8 -> 0 | AS8: =$S8*O8 -> 0 | AT8: =$S8*P8 -> 0 | AV8: =$T8*G8 -> 0 | AW8: =$T8*H8 -> 0 | AX8: =$T8*I8 -> 0 | AY8: =$T8*J8 -> 0 | AZ8: =$T8*K8 -> 0 | BA8: =$T8*L8 -> 0 | BB8: =$T8*M8 -> 0 | BC8: =$T8*N8 -> 0 | BD8: =$T8*O8 -> 0 | BE8: =$T8*P8 -> 0 | BG8: =$U8*G8 -> 0 | BH8: =$U8*H8 -> 0 | BI8: =$U8*I8 -> 0 | BJ8: =$U8*J8 -> 0 | BK8: =$U8*K8 -> 0 | BL8: =$U8*L8 -> 0 | BM8: =$U8*M8 -> 0 | BN8: =$U8*N8 -> 0 | BO8: =$U8*O8 -> 0 | BP8: =$U8*P8 -> 0 | BR8: =$V8*G8 -> 0 | BS8: =$V8*H8 -> 0 | BT8: =$V8*I8 -> 0 | BU8: =$V8*J8 -> 0 | BV8: =$V8*K8 -> 0 | BW8: =$V8*L8 -> 0 | BX8: =$V8*M8 -> 0 | BY8: =$V8*N8 -> 0 | BZ8: =$V8*O8 -> 0 | CA8: =$V8*P8 -> 0 | CC8: =$W8*G8 -> 0 | CD8: =$W8*H8 -> 0 | CE8: =$W8*I8 -> 0 | CF8: =$W8*J8 -> 0 | CG8: =$W8*K8 -> 0 | CH8: =$W8*L8 -> 0 | CI8: =$W8*M8 -> 0 | CJ8: =$W8*N8 -> 0 | CK8: =$W8*O8 -> 0 | CL8: =$W8*P8 -> 0
B9: Construction | G9: 0 | H9: 0 | I9: 0 | N9: 0 | X9: 0 | Z9: 0 | AA9: 0 | AB9: 0 | AC9: 0 | AD9: 0 | AE9: 0 | AF9: 0 | AG9: 0 | AH9: 0 | AI9: 0 | AK9: 0 | AL9: 0 | AM9: 0 | AN9: 0 | AO9: 0 | AP9: 0 | AQ9: 0 | AR9: 0 | AS9: 0 | AT9: 0 | AV9: 0 | AW9: 0 | AX9: 0 | AY9: 0 | AZ9: 0 | BA9: 0 | BB9: 0 | BC9: 0 | BD9: 0 | BE9: 0 | BG9: 0 | BH9: 0 | BI9: 0 | BJ9: 0 | BK9: 0 | BL9: 0 | BM9: 0 | BN9: 0 | BO9: 0 | BP9: 0 | BR9: 0 | BS9: 0 | BT9: 0 | BU9: 0 | BV9: 0 | BW9: 0 | BX9: 0 | BY9: 0 | BZ9: 0 | CA9: 0 | CC9: 0 | CD9: 0 | CE9: 0 | CF9: 0 | CG9: 0 | CH9: 0 | CI9: 0 | CJ9: 0 | CK9: 0 | CL9: 0
B10: Customer Works | H10: 0 | I10: 0 | N10: 0 | X10: =SUM(R10:W10) -> 0 | Z10: =$R10*G10 -> 0 | AA10: =$R10*H10 -> 0 | AB10: =$R10*I10 -> 0 | AC10: =$R10*J10 -> 0 | AD10: =$R10*K10 -> 0 | AE10: =$R10*L10 -> 0 | AF10: =$R10*M10 -> 0 | AG10: =$R10*N10 -> 0 | AH10: =$R10*O10 -> 0 | AI10: =$R10*P10 -> 0 | AK10: =$S10*G10 -> 0 | AL10: =$S10*H10 -> 0 | AM10: =$S10*I10 -> 0 | AN10: =$S10*J10 -> 0 | AO10: =$S10*K10 -> 0 | AP10: =$S10*L10 -> 0 | AQ10: =$S10*M10 -> 0 | AR10: =$S10*N10 -> 0 | AS10: =$S10*O10 -> 0 | AT10: =$S10*P10 -> 0 | AV10: =$T10*G10 -> 0 | AW10: =$T10*H10 -> 0 | AX10: =$T10*I10 -> 0 | AY10: =$T10*J10 -> 0 | AZ10: =$T10*K10 -> 0 | BA10: =$T10*L10 -> 0 | BB10: =$T10*M10 -> 0 | BC10: =$T10*N10 -> 0 | BD10: =$T10*O10 -> 0 | BE10: =$T10*P10 -> 0 | BG10: =$U10*G10 -> 0 | BH10: =$U10*H10 -> 0 | BI10: =$U10*I10 -> 0 | BJ10: =$U10*J10 -> 0 | BK10: =$U10*K10 -> 0 | BL10: =$U10*L10 -> 0 | BM10: =$U10*M10 -> 0 | BN10: =$U10*N10 -> 0 | BO10: =$U10*O10 -> 0 | BP10: =$U10*P10 -> 0 | BR10: 0 | BS10: 0 | BT10: 0 | BU10: 0 | BV10: 0 | BW10: 0 | BX10: 0 | BY10: 0 | BZ10: 0 | CA10: 0 | CC10: =$W10*G10 -> 0 | CD10: =$W10*H10 -> 0 | CE10: =$W10*I10 -> 0 | CF10: =$W10*J10 -> 0 | CG10: =$W10*K10 -> 0 | CH10: =$W10*L10 -> 0 | CI10: =$W10*M10 -> 0 | CJ10: =$W10*N10 -> 0 | CK10: =$W10*O10 -> 0 | CL10: =$W10*P10 -> 0
B11: Operational Phase | G11: 0 | H11: 0 | I11: 0 | M11: 0 | N11: 0 | X11: 0 | Z11: 0 | AA11: 0 | AB11: 0 | AC11: 0 | AD11: 0 | AE11: 0 | AF11: 0 | AG11: 0 | AH11: 0 | AI11: 0 | AK11: 0 | AL11: 0 | AM11: 0 | AN11: 0 | AO11: 0 | AP11: 0 | AQ11: 0 | AR11: 0 | AS11: 0 | AT11: 0 | AV11: 0 | AW11: 0 | AX11: 0 | AY11: 0 | AZ11: 0 | BA11: 0 | BB11: 0 | BC11: 0 | BD11: 0 | BE11: 0 | BG11: 0 | BH11: 0 | BI11: 0 | BJ11: 0 | BK11: 0 | BL11: 0 | BM11: 0 | BN11: 0 | BO11: 0 | BP11: 0 | BR11: =$V11*G11 -> 0 | BS11: =$V11*H11 -> 0 | BT11: =$V11*I11 -> 0 | BU11: =$V11*J11 -> 0 | BV11: =$V11*K11 -> 0 | BW11: =$V11*L11 -> 0 | BX11: =$V11*M11 -> 0 | BY11: =$V11*N11 -> 0 | BZ11: =$V11*O11 -> 0 | CA11: =$V11*P11 -> 0 | CC11: 0 | CD11: 0 | CE11: 0 | CF11: 0 | CG11: 0 | CH11: 0 | CI11: 0 | CJ11: 0 | CK11: 0 | CL11: 0
B12: Support Services | H12: 0 | I12: 0 | N12: 0 | Q12: Total Cost | X12: =SUM(R12:W12) -> 0 | Z12: =$R12*G12 -> 0 | AA12: 0 | AB12: 0 | AC12: 0 | AD12: 0 | AE12: 0 | AF12: 0 | AG12: 0 | AH12: 0 | AI12: 0 | AK12: =$S12*G12 -> 0 | AL12: 0 | AM12: 0 | AN12: 0 | AO12: 0 | AP12: 0 | AQ12: 0 | AR12: 0 | AS12: 0 | AT12: 0 | AV12: =$T12*G12 -> 0 | AW12: 0 | AX12: 0 | AY12: 0 | AZ12: 0 | BA12: 0 | BB12: 0 | BC12: 0 | BD12: 0 | BE12: 0 | BG12: =$U12*G12 -> 0 | BH12: 0 | BI12: 0 | BJ12: 0 | BK12: 0 | BL12: 0 | BM12: 0 | BN12: 0 | BO12: 0 | BP12: 0 | BR12: =$V12*G12 -> 0 | BS12: 0 | BT12: 0 | BU12: 0 | BV12: 0 | BW12: 0 | BX12: 0 | BY12: 0 | BZ12: 0 | CA12: 0 | CC12: =$W12*G12 -> 0 | CD12: 0 | CE12: 0 | CF12: 0 | CG12: 0 | CH12: 0 | CI12: 0 | CJ12: 0 | CK12: 0 | CL12: 0
B13: Total | G13: =SUM(G7:G12) -> 0 | H13: =SUM(H7:H12) -> 6078627 | I13: =SUM(I7:I12) -> 500000 | J13: 0 | K13: 0 | L13: 0 | M13: 0 | N13: 776215.3749 | O13: 0 | P13: 0 | Q13: =SUM(G13:P13) -> 7354842.375 | Z13: =SUM(Z7:Z12) -> 0 | AA13: =SUM(AA7:AA12) -> 0 | AB13: 0 | AC13: 0 | AD13: 0 | AE13: 0 | AF13: 0 | AG13: 0 | AH13: 0 | AI13: 0 | AK13: =SUM(AK7:AK12) -> 0 | AL13: =SUM(AL7:AL12) -> 5665387.213 | AM13: 466008.7889 | AN13: 0 | AO13: 0 | AP13: 0 | AQ13: 0 | AR13: 723446.3735 | AS13: 0 | AT13: 0 | AV13: =SUM(AV7:AV12) -> 0 | AW13: =SUM(AW7:AW12) -> 0 | AX13: 0 | AY13: 0 | AZ13: 0 | BA13: 0 | BB13: 0 | BC13: 0 | BD13: 0 | BE13: 0 | BG13: =SUM(BG7:BG12) -> 0 | BH13: =SUM(BH7:BH12) -> 0 | BI13: 0 | BJ13: 0 | BK13: 0 | BL13: 0 | BM13: 0 | BN13: 0 | BO13: 0 | BP13: 0 | BR13: =SUM(BR7:BR12) -> 0 | BS13: =SUM(BS7:BS12) -> 413239.7875 | BT13: 33991.21113 | BU13: 0 | BV13: 0 | BW13: 0 | BX13: 0 | BY13: 52769.00138 | BZ13: 0 | CA13: 0 | CC13: =SUM(CC7:CC12) -> 0 | CD13: =SUM(CD7:CD12) -> 0 | CE13: 0 | CF13: 0 | CG13: 0 | CH13: 0 | CI13: 0 | CJ13: 0 | CK13: 0 | CL13: 0
D259: Totals

Sheet 2021-2022
B1: Project Costs in 2021-2022
G4: Total Cost £K | R4: Funding source % | Z4: Licensee Compulsory Contribution/Direct Benefits | AK4: Scottish Government | AV4: Project Partner 2 | BG4: Project Partner 3 | BR4: Licensee Extra Contribution | CC4: Outstanding Funding Required
G5: Labour | H5: Equipment | I5: Contractors | J5: IT | K5: IPR Costs | L5: Travel & Expenses | M5: Payments to users | N5: Contingency | O5: Decommissioning | P5: Other | R5: Licensee Compulsory Contribution /Direct Benefits | S5: Scottish Government | T5: Project Partner 2 | U5: Project Partner 3 | V5: Licensee Extra Contribution | W5: Oustanding Funding Required | X5: Total | Z5: Labour | AA5: Equipment | AB5: Contractors | AC5: IT | AD5: IPR Costs | AE5: Travel & Expenses | AF5: Payments to users | AG5: Contingency | AH5: Decommissioning | AI5: Other | AK5: Labour | AL5: Equipment | AM5: Contractors | AN5: IT | AO5: IPR Costs | AP5: Travel & Expenses | AQ5: Payments to users | AR5: Contingency | AS5: Decommissioning | AT5: Other | AV5: Labour | AW5: Equipment | AX5: Contractors | AY5: IT | AZ5: IPR Costs | BA5: Travel & Expenses | BB5: Payments to users | BC5: Contingency | BD5: Decommissioning | BE5: Other | BG5: Labour | BH5: Equipment | BI5: Contractors | BJ5: IT | BK5: IPR Costs | BL5: Travel & Expenses | BM5: Payments to users | BN5: Contingency | BO5: Decommissioning | BP5: Other | BR5: Labour | BS5: Equipment | BT5: Contractors | BU5: IT | BV5: IPR Costs | BW5: Travel & Expenses | BX5: Payments to users | BY5: Contingency | BZ5: Decommissioning | CA5: Other | CC5: Labour | CD5: Equipment | CE5: Contractors | CF5: IT | CG5: IPR Costs | CH5: Travel & Expenses | CI5: Payments to users | CJ5: Contingency | CK5: Decommissioning | CL5: Other
B6: Description | C6: Task | D6: Project Workstream
B7: Pre NIC | H7: 0 | I7: 0 | N7: 0 | X7: =SUM(R7:W7) -> 0 | Z7: =$R7*G7 -> 0 | AA7: =$R7*H7 -> 0 | AB7: 0 | AC7: 0 | AD7: 0 | AE7: 0 | AF7: 0 | AG7: 0 | AH7: 0 | AI7: 0 | AK7: =$S7*G7 -> 0 | AL7: =$S7*H7 -> 0 | AM7: 0 | AN7: 0 | AO7: 0 | AP7: 0 | AQ7: 0 | AR7: 0 | AS7: 0 | AT7: 0 | AV7: =$T7*G7 -> 0 | AW7: =$T7*H7 -> 0 | AX7: 0 | AY7: 0 | AZ7: 0 | BA7: 0 | BB7: 0 | BC7: 0 | BD7: 0 | BE7: 0 | BG7: =$U7*G7 -> 0 | BH7: =$U7*H7 -> 0 | BI7: 0 | BJ7: 0 | BK7: 0 | BL7: 0 | BM7: 0 | BN7: 0 | BO7: 0 | BP7: 0 | BR7: =$V7*G7 -> 0 | BS7: =$V7*H7 -> 0 | BT7: 0 | BU7: 0 | BV7: 0 | BW7: 0 | BX7: 0 | BY7: 0 | BZ7: 0 | CA7: 0 | CC7: =$W7*G7 -> 0 | CD7: =$W7*H7 -> 0 | CE7: 0 | CF7: 0 | CG7: 0 | CH7: 0 | CI7: 0 | CJ7: 0 | CK7: 0 | CL7: 0
B8: Pre Construction and Demonstration Facility | G8: 492969 | H8: 289450 | I8: 1341482 | N8: 66830.20375 | R8: 0.9326122859 | W8: 0.06738771408 | X8: =SUM(R8:W8) -> 1 | Z8: =$R8*G8 -> 459748.946 | AA8: =$R8*H8 -> 269944.6262 | AB8: 1251082.595 | AC8: 0 | AD8: 0 | AE8: 0 | AF8: 0 | AG8: 62326.66909 | AH8: 0 | AI8: 0 | AK8: =$S8*G8 -> 0 | AL8: =$S8*H8 -> 0 | AM8: 0 | AN8: 0 | AO8: 0 | AP8: 0 | AQ8: 0 | AR8: 0 | AS8: 0 | AT8: 0 | AV8: =$T8*G8 -> 0 | AW8: =$T8*H8 -> 0 | AX8: 0 | AY8: 0 | AZ8: 0 | BA8: 0 | BB8: 0 | BC8: 0 | BD8: 0 | BE8: 0 | BG8: =$U8*G8 -> 0 | BH8: =$U8*H8 -> 0 | BI8: 0 | BJ8: 0 | BK8: 0 | BL8: 0 | BM8: 0 | BN8: 0 | BO8: 0 | BP8: 0 | BR8: =$V8*G8 -> 0 | BS8: =$V8*H8 -> 0 | BT8: 0 | BU8: 0 | BV8: 0 | BW8: 0 | BX8: 0 | BY8: 0 | BZ8: 0 | CA8: 0 | CC8: =$W8*G8 -> 33220.05402 | CD8: =$W8*H8 -> 19505.37384 | CE8: 90399.40546 | CF8: 0 | CG8: 0 | CH8: 0 | CI8: 0 | CJ8: 4503.534663 | CK8: 0 | CL8: 0
B9: Construction | G9: 0 | H9: 0 | I9: 0 | N9: 0 | X9: 0 | Z9: 0 | AA9: =$R9*H9 -> 0 | AB9: =$R9*I9 -> 0 | AC9: =$R9*J9 -> 0 | AD9: =$R9*K9 -> 0 | AE9: =$R9*L9 -> 0 | AF9: =$R9*M9 -> 0 | AG9: =$R9*N9 -> 0 | AH9: =$R9*O9 -> 0 | AI9: =$R9*P9 -> 0 | AK9: =$S9*G9 -> 0 | AL9: =$S9*H9 -> 0 | AM9: =$S9*I9 -> 0 | AN9: =$S9*J9 -> 0 | AO9: =$S9*K9 -> 0 | AP9: =$S9*L9 -> 0 | AQ9: =$S9*M9 -> 0 | AR9: =$S9*N9 -> 0 | AS9: =$S9*O9 -> 0 | AT9: =$S9*P9 -> 0 | AV9: =$T9*G9 -> 0 | AW9: =$T9*H9 -> 0 | AX9: =$T9*I9 -> 0 | AY9: =$T9*J9 -> 0 | AZ9: =$T9*K9 -> 0 | BA9: =$T9*L9 -> 0 | BB9: =$T9*M9 -> 0 | BC9: =$T9*N9 -> 0 | BD9: =$T9*O9 -> 0 | BE9: =$T9*P9 -> 0 | BG9: =$U9*G9 -> 0 | BH9: =$U9*H9 -> 0 | BI9: =$U9*I9 -> 0 | BJ9: =$U9*J9 -> 0 | BK9: =$U9*K9 -> 0 | BL9: =$U9*L9 -> 0 | BM9: =$U9*M9 -> 0 | BN9: =$U9*N9 -> 0 | BO9: =$U9*O9 -> 0 | BP9: =$U9*P9 -> 0 | BR9: =$V9*G9 -> 0 | BS9: =$V9*H9 -> 0 | BT9: =$V9*I9 -> 0 | BU9: =$V9*J9 -> 0 | BV9: =$V9*K9 -> 0 | BW9: =$V9*L9 -> 0 | BX9: =$V9*M9 -> 0 | BY9: =$V9*N9 -> 0 | BZ9: =$V9*O9 -> 0 | CA9: =$V9*P9 -> 0 | CC9: =$W9*G9 -> 0 | CD9: =$W9*H9 -> 0 | CE9: =$W9*I9 -> 0 | CF9: =$W9*J9 -> 0 | CG9: =$W9*K9 -> 0 | CH9: =$W9*L9 -> 0 | CI9: =$W9*M9 -> 0 | CJ9: =$W9*N9 -> 0 | CK9: =$W9*O9 -> 0 | CL9: =$W9*P9 -> 0
B10: Customer Works | H10: 0 | I10: 0 | N10: 0 | X10: =SUM(R10:W10) -> 0 | Z10: =$R10*G10 -> 0 | AA10: 0 | AB10: 0 | AC10: 0 | AD10: 0 | AE10: 0 | AF10: 0 | AG10: 0 | AH10: 0 | AI10: 0 | AK10: =$S10*G10 -> 0 | AL10: 0 | AM10: 0 | AN10: 0 | AO10: 0 | AP10: 0 | AQ10: 0 | AR10: 0 | AS10: 0 | AT10: 0 | AV10: =$T10*G10 -> 0 | AW10: 0 | AX10: 0 | AY10: 0 | AZ10: 0 | BA10: 0 | BB10: 0 | BC10: 0 | BD10: 0 | BE10: 0 | BG10: =$U10*G10 -> 0 | BH10: 0 | BI10: 0 | BJ10: 0 | BK10: 0 | BL10: 0 | BM10: 0 | BN10: 0 | BO10: 0 | BP10: 0 | BR10: =$V10*G10 -> 0 | BS10: 0 | BT10: 0 | BU10: 0 | BV10: 0 | BW10: 0 | BX10: 0 | BY10: 0 | BZ10: 0 | CA10: 0 | CC10: =$W10*G10 -> 0 | CD10: 0 | CE10: 0 | CF10: 0 | CG10: 0 | CH10: 0 | CI10: 0 | CJ10: 0 | CK10: 0 | CL10: 0
B11: Operational Phase | G11: 0 | H11: 0 | I11: 0 | M11: 0 | N11: 0 | W11: 1 | X11: =SUM(R11:W11) -> 1 | Z11: =$R11*G11 -> 0 | AA11: =$R11*H11 -> 0 | AB11: =$R11*I11 -> 0 | AC11: =$R11*J11 -> 0 | AD11: =$R11*K11 -> 0 | AE11: =$R11*L11 -> 0 | AF11: =$R11*M11 -> 0 | AG11: =$R11*N11 -> 0 | AH11: =$R11*O11 -> 0 | AI11: =$R11*P11 -> 0 | AK11: =$S11*G11 -> 0 | AL11: =$S11*H11 -> 0 | AM11: =$S11*I11 -> 0 | AN11: =$S11*J11 -> 0 | AO11: =$S11*K11 -> 0 | AP11: =$S11*L11 -> 0 | AQ11: =$S11*M11 -> 0 | AR11: =$S11*N11 -> 0 | AS11: =$S11*O11 -> 0 | AT11: =$S11*P11 -> 0 | AV11: =$T11*G11 -> 0 | AW11: =$T11*H11 -> 0 | AX11: =$T11*I11 -> 0 | AY11: =$T11*J11 -> 0 | AZ11: =$T11*K11 -> 0 | BA11: =$T11*L11 -> 0 | BB11: =$T11*M11 -> 0 | BC11: =$T11*N11 -> 0 | BD11: =$T11*O11 -> 0 | BE11: =$T11*P11 -> 0 | BG11: =$U11*G11 -> 0 | BH11: =$U11*H11 -> 0 | BI11: =$U11*I11 -> 0 | BJ11: =$U11*J11 -> 0 | BK11: =$U11*K11 -> 0 | BL11: =$U11*L11 -> 0 | BM11: =$U11*M11 -> 0 | BN11: =$U11*N11 -> 0 | BO11: =$U11*O11 -> 0 | BP11: =$U11*P11 -> 0 | BR11: =$V11*G11 -> 0 | BS11: =$V11*H11 -> 0 | BT11: =$V11*I11 -> 0 | BU11: =$V11*J11 -> 0 | BV11: =$V11*K11 -> 0 | BW11: =$V11*L11 -> 0 | BX11: =$V11*M11 -> 0 | BY11: =$V11*N11 -> 0 | BZ11: =$V11*O11 -> 0 | CA11: =$V11*P11 -> 0 | CC11: =$W11*G11 -> 0 | CD11: =$W11*H11 -> 0 | CE11: =$W11*I11 -> 0 | CF11: =$W11*J11 -> 0 | CG11: =$W11*K11 -> 0 | CH11: =$W11*L11 -> 0 | CI11: =$W11*M11 -> 0 | CJ11: =$W11*N11 -> 0 | CK11: =$W11*O11 -> 0 | CL11: =$W11*P11 -> 0
B12: Support Services | H12: 13208.33333 | I12: 549123 | N12: 36522.21787 | Q12: Total Cost | W12: 1 | X12: =SUM(R12:W12) -> 1 | Z12: =$R12*G12 -> 0 | AA12: 0 | AB12: 0 | AC12: 0 | AD12: 0 | AE12: 0 | AF12: 0 | AG12: 0 | AH12: 0 | AI12: 0 | AK12: =$S12*G12 -> 0 | AL12: 0 | AM12: 0 | AN12: 0 | AO12: 0 | AP12: 0 | AQ12: 0 | AR12: 0 | AS12: 0 | AT12: 0 | AV12: =$T12*G12 -> 0 | AW12: 0 | AX12: 0 | AY12: 0 | AZ12: 0 | BA12: 0 | BB12: 0 | BC12: 0 | BD12: 0 | BE12: 0 | BG12: =$U12*G12 -> 0 | BH12: 0 | BI12: 0 | BJ12: 0 | BK12: 0 | BL12: 0 | BM12: 0 | BN12: 0 | BO12: 0 | BP12: 0 | BR12: =$V12*G12 -> 0 | BS12: 0 | BT12: 0 | BU12: 0 | BV12: 0 | BW12: 0 | BX12: 0 | BY12: 0 | BZ12: 0 | CA12: 0 | CC12: =$W12*G12 -> 0 | CD12: 13208.33333 | CE12: 549123 | CF12: 0 | CG12: 0 | CH12: 0 | CI12: 0 | CJ12: 36522.21787 | CK12: 0 | CL12: 0
B13: Total | G13: =SUM(G7:G12) -> 492969 | H13: =SUM(H7:H12) -> 302658.3333 | I13: 1890605 | J13: 0 | K13: 0 | L13: 0 | M13: 0 | N13: 103352.4216 | O13: 0 | P13: 0 | Q13: =SUM(G13:P13) -> 2789584.755 | Z13: =SUM(Z7:Z12) -> 459748.946 | AA13: =SUM(AA7:AA12) -> 269944.6262 | AB13: 1251082.595 | AC13: 0 | AD13: 0 | AE13: 0 | AF13: 0 | AG13: 62326.66909 | AH13: 0 | AI13: 0 | AK13: =SUM(AK7:AK12) -> 0 | AL13: =SUM(AL7:AL12) -> 0 | AM13: 0 | AN13: 0 | AO13: 0 | AP13: 0 | AQ13: 0 | AR13: 0 | AS13: 0 | AT13: 0 | AV13: =SUM(AV7:AV12) -> 0 | AW13: =SUM(AW7:AW12) -> 0 | AX13: 0 | AY13: 0 | AZ13: 0 | BA13: 0 | BB13: 0 | BC13: 0 | BD13: 0 | BE13: 0 | BG13: =SUM(BG7:BG12) -> 0 | BH13: =SUM(BH7:BH12) -> 0 | BI13: 0 | BJ13: 0 | BK13: 0 | BL13: 0 | BM13: 0 | BN13: 0 | BO13: 0 | BP13: 0 | BR13: =SUM(BR7:BR12) -> 0 | BS13: =SUM(BS7:BS12) -> 0 | BT13: 0 | BU13: 0 | BV13: 0 | BW13: 0 | BX13: 0 | BY13: 0 | BZ13: 0 | CA13: 0 | CC13: =SUM(CC7:CC12) -> 33220.05402 | CD13: =SUM(CD7:CD12) -> 32713.70717 | CE13: 639522.4055 | CF13: 0 | CG13: 0 | CH13: 0 | CI13: 0 | CJ13: 41025.75253 | CK13: 0 | CL13: 0
D259: Totals

Sheet 2022-2023
B1: Project Costs in 2022-2023
G4: Total Cost £K | R4: Funding source % | Z4: Licensee Compulsory Contribution/Direct Benefits | AK4: Scottish Government | AV4: Project Partner 2 | BG4: Project Partner 3 | BR4: Licensee Extra Contribution | CC4: Outstanding Funding Required
G5: Labour | H5: Equipment | I5: Contractors | J5: IT | K5: IPR Costs | L5: Travel & Expenses | M5: Payments to users | N5: Contingency | O5: Decommissioning | P5: Other | R5: Licensee Compulsory Contribution /Direct Benefits | S5: Scottish Government | T5: Project Partner 2 | U5: Project Partner 3 | V5: Licensee Extra Contribution | W5: Oustanding Funding Required | X5: Total | Z5: Labour | AA5: Equipment | AB5: Contractors | AC5: IT | AD5: IPR Costs | AE5: Travel & Expenses | AF5: Payments to users | AG5: Contingency | AH5: Decommissioning | AI5: Other | AK5: Labour | AL5: Equipment | AM5: Contractors | AN5: IT | AO5: IPR Costs | AP5: Travel & Expenses | AQ5: Payments to users | AR5: Contingency | AS5: Decommissioning | AT5: Other | AV5: Labour | AW5: Equipment | AX5: Contractors | AY5: IT | AZ5: IPR Costs | BA5: Travel & Expenses | BB5: Payments to users | BC5: Contingency | BD5: Decommissioning | BE5: Other | BG5: Labour | BH5: Equipment | BI5: Contractors | BJ5: IT | BK5: IPR Costs | BL5: Travel & Expenses | BM5: Payments to users | BN5: Contingency | BO5: Decommissioning | BP5: Other | BR5: Labour | BS5: Equipment | BT5: Contractors | BU5: IT | BV5: IPR Costs | BW5: Travel & Expenses | BX5: Payments to users | BY5: Contingency | BZ5: Decommissioning | CA5: Other | CC5: Labour | CD5: Equipment | CE5: Contractors | CF5: IT | CG5: IPR Costs | CH5: Travel & Expenses | CI5: Payments to users | CJ5: Contingency | CK5: Decommissioning | CL5: Other
B6: Description | C6: Task | D6: Project Workstream
B7: Pre NIC | H7: 0 | I7: 0 | N7: 0 | X7: =SUM(R7:W7) -> 0 | Z7: =$R7*G7 -> 0 | AA7: =$R7*H7 -> 0 | AB7: 0 | AC7: 0 | AD7: 0 | AE7: 0 | AF7: 0 | AG7: 0 | AH7: 0 | AI7: 0 | AK7: =$S7*G7 -> 0 | AL7: =$S7*H7 -> 0 | AM7: 0 | AN7: 0 | AO7: 0 | AP7: 0 | AQ7: 0 | AR7: 0 | AS7: 0 | AT7: 0 | AV7: =$T7*G7 -> 0 | AW7: =$T7*H7 -> 0 | AX7: 0 | AY7: 0 | AZ7: 0 | BA7: 0 | BB7: 0 | BC7: 0 | BD7: 0 | BE7: 0 | BG7: =$U7*G7 -> 0 | BH7: =$U7*H7 -> 0 | BI7: 0 | BJ7: 0 | BK7: 0 | BL7: 0 | BM7: 0 | BN7: 0 | BO7: 0 | BP7: 0 | BR7: =$V7*G7 -> 0 | BS7: =$V7*H7 -> 0 | BT7: 0 | BU7: 0 | BV7: 0 | BW7: 0 | BX7: 0 | BY7: 0 | BZ7: 0 | CA7: 0 | CC7: =$W7*G7 -> 0 | CD7: =$W7*H7 -> 0 | CE7: 0 | CF7: 0 | CG7: 0 | CH7: 0 | CI7: 0 | CJ7: 0 | CK7: 0 | CL7: 0
B8: Pre Construction and Demonstration Facility | G8: 0 | H8: 12000 | I8: 0 | N8: 273.0649112 | W8: 1 | X8: =SUM(R8:W8) -> 1 | Z8: =$R8*G8 -> 0 | AA8: =$R8*H8 -> 0 | AB8: =$R8*I8 -> 0 | AC8: =$R8*J8 -> 0 | AD8: =$R8*K8 -> 0 | AE8: =$R8*L8 -> 0 | AF8: =$R8*M8 -> 0 | AG8: =$R8*N8 -> 0 | AH8: =$R8*O8 -> 0 | AI8: =$R8*P8 -> 0 | AK8: =$S8*G8 -> 0 | AL8: =$S8*H8 -> 0 | AM8: =$S8*I8 -> 0 | AN8: =$S8*J8 -> 0 | AO8: =$S8*K8 -> 0 | AP8: =$S8*L8 -> 0 | AQ8: =$S8*M8 -> 0 | AR8: =$S8*N8 -> 0 | AS8: =$S8*O8 -> 0 | AT8: =$S8*P8 -> 0 | AV8: =$T8*G8 -> 0 | AW8: =$T8*H8 -> 0 | AX8: =$T8*I8 -> 0 | AY8: =$T8*J8 -> 0 | AZ8: =$T8*K8 -> 0 | BA8: =$T8*L8 -> 0 | BB8: =$T8*M8 -> 0 | BC8: =$T8*N8 -> 0 | BD8: =$T8*O8 -> 0 | BE8: =$T8*P8 -> 0 | BG8: =$U8*G8 -> 0 | BH8: =$U8*H8 -> 0 | BI8: =$U8*I8 -> 0 | BJ8: =$U8*J8 -> 0 | BK8: =$U8*K8 -> 0 | BL8: =$U8*L8 -> 0 | BM8: =$U8*M8 -> 0 | BN8: =$U8*N8 -> 0 | BO8: =$U8*O8 -> 0 | BP8: =$U8*P8 -> 0 | BR8: =$V8*G8 -> 0 | BS8: =$V8*H8 -> 0 | BT8: =$V8*I8 -> 0 | BU8: =$V8*J8 -> 0 | BV8: =$V8*K8 -> 0 | BW8: =$V8*L8 -> 0 | BX8: =$V8*M8 -> 0 | BY8: =$V8*N8 -> 0 | BZ8: =$V8*O8 -> 0 | CA8: =$V8*P8 -> 0 | CC8: =$W8*G8 -> 0 | CD8: =$W8*H8 -> 12000 | CE8: =$W8*I8 -> 0 | CF8: =$W8*J8 -> 0 | CG8: =$W8*K8 -> 0 | CH8: =$W8*L8 -> 0 | CI8: =$W8*M8 -> 0 | CJ8: =$W8*N8 -> 273.0649112 | CK8: =$W8*O8 -> 0 | CL8: =$W8*P8 -> 0
B9: Construction | G9: 504999 | H9: 1417167.56 | I9: 2783000 | N9: 254801.575 | W9: 1 | X9: 1 | Z9: 0 | AA9: 0 | AB9: 0 | AC9: 0 | AD9: 0 | AE9: 0 | AF9: 0 | AG9: 0 | AH9: 0 | AI9: 0 | AK9: 0 | AL9: 0 | AM9: 0 | AN9: 0 | AO9: 0 | AP9: 0 | AQ9: 0 | AR9: 0 | AS9: 0 | AT9: 0 | AV9: 0 | AW9: 0 | AX9: 0 | AY9: 0 | AZ9: 0 | BA9: 0 | BB9: 0 | BC9: 0 | BD9: 0 | BE9: 0 | BG9: 0 | BH9: 0 | BI9: 0 | BJ9: 0 | BK9: 0 | BL9: 0 | BM9: 0 | BN9: 0 | BO9: 0 | BP9: 0 | BR9: 0 | BS9: 0 | BT9: 0 | BU9: 0 | BV9: 0 | BW9: 0 | BX9: 0 | BY9: 0 | BZ9: 0 | CA9: 0 | CC9: 504999 | CD9: 1417167.56 | CE9: 2783000 | CF9: 0 | CG9: 0 | CH9: 0 | CI9: 0 | CJ9: 254801.575 | CK9: 0 | CL9: 0
B10: Customer Works | H10: 1247557.4 | I10: 269270 | N10: 42540.62339 | W10: 1 | X10: =SUM(R10:W10) -> 1 | Z10: =$R10*G10 -> 0 | AA10: =$R10*H10 -> 0 | AB10: =$R10*I10 -> 0 | AC10: =$R10*J10 -> 0 | AD10: =$R10*K10 -> 0 | AE10: =$R10*L10 -> 0 | AF10: =$R10*M10 -> 0 | AG10: =$R10*N10 -> 0 | AH10: =$R10*O10 -> 0 | AI10: =$R10*P10 -> 0 | AK10: =$S10*G10 -> 0 | AL10: =$S10*H10 -> 0 | AM10: =$S10*I10 -> 0 | AN10: =$S10*J10 -> 0 | AO10: =$S10*K10 -> 0 | AP10: =$S10*L10 -> 0 | AQ10: =$S10*M10 -> 0 | AR10: =$S10*N10 -> 0 | AS10: =$S10*O10 -> 0 | AT10: =$S10*P10 -> 0 | AV10: =$T10*G10 -> 0 | AW10: =$T10*H10 -> 0 | AX10: =$T10*I10 -> 0 | AY10: =$T10*J10 -> 0 | AZ10: =$T10*K10 -> 0 | BA10: =$T10*L10 -> 0 | BB10: =$T10*M10 -> 0 | BC10: =$T10*N10 -> 0 | BD10: =$T10*O10 -> 0 | BE10: =$T10*P10 -> 0 | BG10: =$U10*G10 -> 0 | BH10: =$U10*H10 -> 0 | BI10: =$U10*I10 -> 0 | BJ10: =$U10*J10 -> 0 | BK10: =$U10*K10 -> 0 | BL10: =$U10*L10 -> 0 | BM10: =$U10*M10 -> 0 | BN10: =$U10*N10 -> 0 | BO10: =$U10*O10 -> 0 | BP10: =$U10*P10 -> 0 | BR10: 0 | BS10: 0 | BT10: 0 | BU10: 0 | BV10: 0 | BW10: 0 | BX10: 0 | BY10: 0 | BZ10: 0 | CA10: 0 | CC10: =$W10*G10 -> 0 | CD10: =$W10*H10 -> 1247557.4 | CE10: =$W10*I10 -> 269270 | CF10: =$W10*J10 -> 0 | CG10: =$W10*K10 -> 0 | CH10: =$W10*L10 -> 0 | CI10: =$W10*M10 -> 0 | CJ10: =$W10*N10 -> 42540.62339 | CK10: =$W10*O10 -> 0 | CL10: =$W10*P10 -> 0
B11: Operational Phase | G11: 333478.8 | H11: 20000 | I11: 528737.7 | M11: 838400 | N11: 21160.23692 | W11: 1 | X11: 1 | Z11: 0 | AA11: 0 | AB11: 0 | AC11: 0 | AD11: 0 | AE11: 0 | AF11: 0 | AG11: 0 | AH11: 0 | AI11: 0 | AK11: 0 | AL11: 0 | AM11: 0 | AN11: 0 | AO11: 0 | AP11: 0 | AQ11: 0 | AR11: 0 | AS11: 0 | AT11: 0 | AV11: 0 | AW11: 0 | AX11: 0 | AY11: 0 | AZ11: 0 | BA11: 0 | BB11: 0 | BC11: 0 | BD11: 0 | BE11: 0 | BG11: 0 | BH11: 0 | BI11: 0 | BJ11: 0 | BK11: 0 | BL11: 0 | BM11: 0 | BN11: 0 | BO11: 0 | BP11: 0 | BR11: =$V11*G11 -> 0 | BS11: =$V11*H11 -> 0 | BT11: =$V11*I11 -> 0 | BU11: =$V11*J11 -> 0 | BV11: =$V11*K11 -> 0 | BW11: =$V11*L11 -> 0 | BX11: =$V11*M11 -> 0 | BY11: =$V11*N11 -> 0 | BZ11: =$V11*O11 -> 0 | CA11: =$V11*P11 -> 0 | CC11: 333478.8 | CD11: 20000 | CE11: 528737.7 | CF11: 0 | CG11: 0 | CH11: 0 | CI11: 838400 | CJ11: 21160.23692 | CK11: 0 | CL11: 0
B12: Support Services | H12: 13208.33333 | I12: 984123 | N12: 68166.74246 | Q12: Total Cost | W12: 1 | X12: =SUM(R12:W12) -> 1 | Z12: =$R12*G12 -> 0 | AA12: 0 | AB12: 0 | AC12: 0 | AD12: 0 | AE12: 0 | AF12: 0 | AG12: 0 | AH12: 0 | AI12: 0 | AK12: =$S12*G12 -> 0 | AL12: 0 | AM12: 0 | AN12: 0 | AO12: 0 | AP12: 0 | AQ12: 0 | AR12: 0 | AS12: 0 | AT12: 0 | AV12: =$T12*G12 -> 0 | AW12: 0 | AX12: 0 | AY12: 0 | AZ12: 0 | BA12: 0 | BB12: 0 | BC12: 0 | BD12: 0 | BE12: 0 | BG12: =$U12*G12 -> 0 | BH12: 0 | BI12: 0 | BJ12: 0 | BK12: 0 | BL12: 0 | BM12: 0 | BN12: 0 | BO12: 0 | BP12: 0 | BR12: =$V12*G12 -> 0 | BS12: 0 | BT12: 0 | BU12: 0 | BV12: 0 | BW12: 0 | BX12: 0 | BY12: 0 | BZ12: 0 | CA12: 0 | CC12: =$W12*G12 -> 0 | CD12: 13208.33333 | CE12: 984123 | CF12: 0 | CG12: 0 | CH12: 0 | CI12: 0 | CJ12: 68166.74246 | CK12: 0 | CL12: 0
B13: Total | G13: =SUM(G7:G12) -> 838477.8 | H13: =SUM(H7:H12) -> 2709933.293 | I13: 4565130.7 | J13: 0 | K13: 0 | L13: 0 | M13: 838400 | N13: 386942.2427 | O13: 0 | P13: 0 | Q13: =SUM(G13:P13) -> 9338884.036 | Z13: =SUM(Z7:Z12) -> 0 | AA13: =SUM(AA7:AA12) -> 0 | AB13: 0 | AC13: 0 | AD13: 0 | AE13: 0 | AF13: 0 | AG13: 0 | AH13: 0 | AI13: 0 | AK13: =SUM(AK7:AK12) -> 0 | AL13: =SUM(AL7:AL12) -> 0 | AM13: 0 | AN13: 0 | AO13: 0 | AP13: 0 | AQ13: 0 | AR13: 0 | AS13: 0 | AT13: 0 | AV13: =SUM(AV7:AV12) -> 0 | AW13: =SUM(AW7:AW12) -> 0 | AX13: 0 | AY13: 0 | AZ13: 0 | BA13: 0 | BB13: 0 | BC13: 0 | BD13: 0 | BE13: 0 | BG13: =SUM(BG7:BG12) -> 0 | BH13: =SUM(BH7:BH12) -> 0 | BI13: 0 | BJ13: 0 | BK13: 0 | BL13: 0 | BM13: 0 | BN13: 0 | BO13: 0 | BP13: 0 | BR13: =SUM(BR7:BR12) -> 0 | BS13: =SUM(BS7:BS12) -> 0 | BT13: 0 | BU13: 0 | BV13: 0 | BW13: 0 | BX13: 0 | BY13: 0 | BZ13: 0 | CA13: 0 | CC13: =SUM(CC7:CC12) -> 838477.8 | CD13: =SUM(CD7:CD12) -> 2709933.293 | CE13: 4565130.7 | CF13: 0 | CG13: 0 | CH13: 0 | CI13: 838400 | CJ13: 386942.2427 | CK13: 0 | CL13: 0
D259: Totals

Sheet 2023-2024
B1: Project Costs in 2023-2024
G4: Total Cost £K | R4: Funding source % | Z4: Licensee Compulsory Contribution/Direct Benefits | AK4: Scottish Government | AV4: Project Partner 2 | BG4: Project Partner 3 | BR4: Licensee Extra Contribution | CC4: Outstanding Funding Required
G5: Labour | H5: Equipment | I5: Contractors | J5: IT | K5: IPR Costs | L5: Travel & Expenses | M5: Payments to users | N5: Contingency | O5: Decommissioning | P5: Other | R5: Licensee Compulsory Contribution /Direct Benefits | S5: Scottish Government | T5: Project Partner 2 | U5: Project Partner 3 | V5: Licensee Extra Contribution | W5: Oustanding Funding Required | X5: Total | Z5: Labour | AA5: Equipment | AB5: Contractors | AC5: IT | AD5: IPR Costs | AE5: Travel & Expenses | AF5: Payments to users | AG5: Contingency | AH5: Decommissioning | AI5: Other | AK5: Labour | AL5: Equipment | AM5: Contractors | AN5: IT | AO5: IPR Costs | AP5: Travel & Expenses | AQ5: Payments to users | AR5: Contingency | AS5: Decommissioning | AT5: Other | AV5: Labour | AW5: Equipment | AX5: Contractors | AY5: IT | AZ5: IPR Costs | BA5: Travel & Expenses | BB5: Payments to users | BC5: Contingency | BD5: Decommissioning | BE5: Other | BG5: Labour | BH5: Equipment | BI5: Contractors | BJ5: IT | BK5: IPR Costs | BL5: Travel & Expenses | BM5: Payments to users | BN5: Contingency | BO5: Decommissioning | BP5: Other | BR5: Labour | BS5: Equipment | BT5: Contractors | BU5: IT | BV5: IPR Costs | BW5: Travel & Expenses | BX5: Payments to users | BY5: Contingency | BZ5: Decommissioning | CA5: Other | CC5: Labour | CD5: Equipment | CE5: Contractors | CF5: IT | CG5: IPR Costs | CH5: Travel & Expenses | CI5: Payments to users | CJ5: Contingency | CK5: Decommissioning | CL5: Other
B6: Description | C6: Task | D6: Project Workstream
B7: Pre NIC | H7: 0 | I7: 0 | N7: 0 | X7: =SUM(R7:W7) -> 0 | Z7: =$R7*G7 -> 0 | AA7: =$R7*H7 -> 0 | AB7: 0 | AC7: 0 | AD7: 0 | AE7: 0 | AF7: 0 | AG7: 0 | AH7: 0 | AI7: 0 | AK7: =$S7*G7 -> 0 | AL7: =$S7*H7 -> 0 | AM7: 0 | AN7: 0 | AO7: 0 | AP7: 0 | AQ7: 0 | AR7: 0 | AS7: 0 | AT7: 0 | AV7: =$T7*G7 -> 0 | AW7: =$T7*H7 -> 0 | AX7: 0 | AY7: 0 | AZ7: 0 | BA7: 0 | BB7: 0 | BC7: 0 | BD7: 0 | BE7: 0 | BG7: =$U7*G7 -> 0 | BH7: =$U7*H7 -> 0 | BI7: 0 | BJ7: 0 | BK7: 0 | BL7: 0 | BM7: 0 | BN7: 0 | BO7: 0 | BP7: 0 | BR7: =$V7*G7 -> 0 | BS7: =$V7*H7 -> 0 | BT7: 0 | BU7: 0 | BV7: 0 | BW7: 0 | BX7: 0 | BY7: 0 | BZ7: 0 | CA7: 0 | CC7: =$W7*G7 -> 0 | CD7: =$W7*H7 -> 0 | CE7: 0 | CF7: 0 | CG7: 0 | CH7: 0 | CI7: 0 | CJ7: 0 | CK7: 0 | CL7: 0
B8: Pre Construction and Demonstration Facility | G8: 0 | H8: 12000 | I8: 0 | N8: 273.0649112 | W8: 1 | X8: =SUM(R8:W8) -> 1 | Z8: =$R8*G8 -> 0 | AA8: =$R8*H8 -> 0 | AB8: =$R8*I8 -> 0 | AC8: =$R8*J8 -> 0 | AD8: =$R8*K8 -> 0 | AE8: =$R8*L8 -> 0 | AF8: =$R8*M8 -> 0 | AG8: =$R8*N8 -> 0 | AH8: =$R8*O8 -> 0 | AI8: =$R8*P8 -> 0 | AK8: =$S8*G8 -> 0 | AL8: =$S8*H8 -> 0 | AM8: =$S8*I8 -> 0 | AN8: =$S8*J8 -> 0 | AO8: =$S8*K8 -> 0 | AP8: =$S8*L8 -> 0 | AQ8: =$S8*M8 -> 0 | AR8: =$S8*N8 -> 0 | AS8: =$S8*O8 -> 0 | AT8: =$S8*P8 -> 0 | AV8: =$T8*G8 -> 0 | AW8: =$T8*H8 -> 0 | AX8: =$T8*I8 -> 0 | AY8: =$T8*J8 -> 0 | AZ8: =$T8*K8 -> 0 | BA8: =$T8*L8 -> 0 | BB8: =$T8*M8 -> 0 | BC8: =$T8*N8 -> 0 | BD8: =$T8*O8 -> 0 | BE8: =$T8*P8 -> 0 | BG8: =$U8*G8 -> 0 | BH8: =$U8*H8 -> 0 | BI8: =$U8*I8 -> 0 | BJ8: =$U8*J8 -> 0 | BK8: =$U8*K8 -> 0 | BL8: =$U8*L8 -> 0 | BM8: =$U8*M8 -> 0 | BN8: =$U8*N8 -> 0 | BO8: =$U8*O8 -> 0 | BP8: =$U8*P8 -> 0 | BR8: =$V8*G8 -> 0 | BS8: =$V8*H8 -> 0 | BT8: =$V8*I8 -> 0 | BU8: =$V8*J8 -> 0 | BV8: =$V8*K8 -> 0 | BW8: =$V8*L8 -> 0 | BX8: =$V8*M8 -> 0 | BY8: =$V8*N8 -> 0 | BZ8: =$V8*O8 -> 0 | CA8: =$V8*P8 -> 0 | CC8: =$W8*G8 -> 0 | CD8: =$W8*H8 -> 12000 | CE8: =$W8*I8 -> 0 | CF8: =$W8*J8 -> 0 | CG8: =$W8*K8 -> 0 | CH8: =$W8*L8 -> 0 | CI8: =$W8*M8 -> 0 | CJ8: =$W8*N8 -> 273.0649112 | CK8: =$W8*O8 -> 0 | CL8: =$W8*P8 -> 0
B9: Construction | G9: 0 | H9: 0 | I9: 0 | N9: 0 | X9: 0 | Z9: 0 | AA9: 0 | AB9: 0 | AC9: 0 | AD9: 0 | AE9: 0 | AF9: 0 | AG9: 0 | AH9: 0 | AI9: 0 | AK9: 0 | AL9: 0 | AM9: 0 | AN9: 0 | AO9: 0 | AP9: 0 | AQ9: 0 | AR9: 0 | AS9: 0 | AT9: 0 | AV9: 0 | AW9: 0 | AX9: 0 | AY9: 0 | AZ9: 0 | BA9: 0 | BB9: 0 | BC9: 0 | BD9: 0 | BE9: 0 | BG9: 0 | BH9: 0 | BI9: 0 | BJ9: 0 | BK9: 0 | BL9: 0 | BM9: 0 | BN9: 0 | BO9: 0 | BP9: 0 | BR9: 0 | BS9: 0 | BT9: 0 | BU9: 0 | BV9: 0 | BW9: 0 | BX9: 0 | BY9: 0 | BZ9: 0 | CA9: 0 | CC9: 0 | CD9: 0 | CE9: 0 | CF9: 0 | CG9: 0 | CH9: 0 | CI9: 0 | CJ9: 0 | CK9: 0 | CL9: 0
B10: Customer Works | H10: 1247557.4 | I10: 269270 | N10: 42540.62339 | W10: 1 | X10: =SUM(R10:W10) -> 1 | Z10: =$R10*G10 -> 0 | AA10: =$R10*H10 -> 0 | AB10: =$R10*I10 -> 0 | AC10: =$R10*J10 -> 0 | AD10: =$R10*K10 -> 0 | AE10: =$R10*L10 -> 0 | AF10: =$R10*M10 -> 0 | AG10: =$R10*N10 -> 0 | AH10: =$R10*O10 -> 0 | AI10: =$R10*P10 -> 0 | AK10: =$S10*G10 -> 0 | AL10: =$S10*H10 -> 0 | AM10: =$S10*I10 -> 0 | AN10: =$S10*J10 -> 0 | AO10: =$S10*K10 -> 0 | AP10: =$S10*L10 -> 0 | AQ10: =$S10*M10 -> 0 | AR10: =$S10*N10 -> 0 | AS10: =$S10*O10 -> 0 | AT10: =$S10*P10 -> 0 | AV10: =$T10*G10 -> 0 | AW10: =$T10*H10 -> 0 | AX10: =$T10*I10 -> 0 | AY10: =$T10*J10 -> 0 | AZ10: =$T10*K10 -> 0 | BA10: =$T10*L10 -> 0 | BB10: =$T10*M10 -> 0 | BC10: =$T10*N10 -> 0 | BD10: =$T10*O10 -> 0 | BE10: =$T10*P10 -> 0 | BG10: =$U10*G10 -> 0 | BH10: =$U10*H10 -> 0 | BI10: =$U10*I10 -> 0 | BJ10: =$U10*J10 -> 0 | BK10: =$U10*K10 -> 0 | BL10: =$U10*L10 -> 0 | BM10: =$U10*M10 -> 0 | BN10: =$U10*N10 -> 0 | BO10: =$U10*O10 -> 0 | BP10: =$U10*P10 -> 0 | BR10: 0 | BS10: 0 | BT10: 0 | BU10: 0 | BV10: 0 | BW10: 0 | BX10: 0 | BY10: 0 | BZ10: 0 | CA10: 0 | CC10: =$W10*G10 -> 0 | CD10: =$W10*H10 -> 1247557.4 | CE10: =$W10*I10 -> 269270 | CF10: =$W10*J10 -> 0 | CG10: =$W10*K10 -> 0 | CH10: =$W10*L10 -> 0 | CI10: =$W10*M10 -> 0 | CJ10: =$W10*N10 -> 42540.62339 | CK10: =$W10*O10 -> 0 | CL10: =$W10*P10 -> 0
B11: Operational Phase | G11: 333478.8 | H11: 0 | I11: 275742.7 | M11: 838400 | N11: 14744.98903 | W11: 1 | X11: 1 | Z11: 0 | AA11: 0 | AB11: 0 | AC11: 0 | AD11: 0 | AE11: 0 | AF11: 0 | AG11: 0 | AH11: 0 | AI11: 0 | AK11: 0 | AL11: 0 | AM11: 0 | AN11: 0 | AO11: 0 | AP11: 0 | AQ11: 0 | AR11: 0 | AS11: 0 | AT11: 0 | AV11: 0 | AW11: 0 | AX11: 0 | AY11: 0 | AZ11: 0 | BA11: 0 | BB11: 0 | BC11: 0 | BD11: 0 | BE11: 0 | BG11: 0 | BH11: 0 | BI11: 0 | BJ11: 0 | BK11: 0 | BL11: 0 | BM11: 0 | BN11: 0 | BO11: 0 | BP11: 0 | BR11: =$V11*G11 -> 0 | BS11: =$V11*H11 -> 0 | BT11: =$V11*I11 -> 0 | BU11: =$V11*J11 -> 0 | BV11: =$V11*K11 -> 0 | BW11: =$V11*L11 -> 0 | BX11: =$V11*M11 -> 0 | BY11: =$V11*N11 -> 0 | BZ11: =$V11*O11 -> 0 | CA11: =$V11*P11 -> 0 | CC11: 333478.8 | CD11: 0 | CE11: 275742.7 | CF11: 0 | CG11: 0 | CH11: 0 | CI11: 838400 | CJ11: 14744.98903 | CK11: 0 | CL11: 0
B12: Support Services | H12: 13208.33333 | I12: 64675 | N12: 1842.806825 | Q12: Total Cost | W12: 1 | X12: =SUM(R12:W12) -> 1 | Z12: =$R12*G12 -> 0 | AA12: 0 | AB12: 0 | AC12: 0 | AD12: 0 | AE12: 0 | AF12: 0 | AG12: 0 | AH12: 0 | AI12: 0 | AK12: =$S12*G12 -> 0 | AL12: 0 | AM12: 0 | AN12: 0 | AO12: 0 | AP12: 0 | AQ12: 0 | AR12: 0 | AS12: 0 | AT12: 0 | AV12: =$T12*G12 -> 0 | AW12: 0 | AX12: 0 | AY12: 0 | AZ12: 0 | BA12: 0 | BB12: 0 | BC12: 0 | BD12: 0 | BE12: 0 | BG12: =$U12*G12 -> 0 | BH12: 0 | BI12: 0 | BJ12: 0 | BK12: 0 | BL12: 0 | BM12: 0 | BN12: 0 | BO12: 0 | BP12: 0 | BR12: =$V12*G12 -> 0 | BS12: 0 | BT12: 0 | BU12: 0 | BV12: 0 | BW12: 0 | BX12: 0 | BY12: 0 | BZ12: 0 | CA12: 0 | CC12: =$W12*G12 -> 0 | CD12: 13208.33333 | CE12: 64675 | CF12: 0 | CG12: 0 | CH12: 0 | CI12: 0 | CJ12: 1842.806825 | CK12: 0 | CL12: 0
B13: Total | G13: =SUM(G7:G12) -> 333478.8 | H13: =SUM(H7:H12) -> 1272765.733 | I13: 609687.7 | J13: 0 | K13: 0 | L13: 0 | M13: 838400 | N13: 59401.48416 | O13: 0 | P13: 0 | Q13: =SUM(G13:P13) -> 3113733.717 | Z13: =SUM(Z7:Z12) -> 0 | AA13: =SUM(AA7:AA12) -> 0 | AB13: 0 | AC13: 0 | AD13: 0 | AE13: 0 | AF13: 0 | AG13: 0 | AH13: 0 | AI13: 0 | AK13: =SUM(AK7:AK12) -> 0 | AL13: =SUM(AL7:AL12) -> 0 | AM13: 0 | AN13: 0 | AO13: 0 | AP13: 0 | AQ13: 0 | AR13: 0 | AS13: 0 | AT13: 0 | AV13: =SUM(AV7:AV12) -> 0 | AW13: =SUM(AW7:AW12) -> 0 | AX13: 0 | AY13: 0 | AZ13: 0 | BA13: 0 | BB13: 0 | BC13: 0 | BD13: 0 | BE13: 0 | BG13: =SUM(BG7:BG12) -> 0 | BH13: =SUM(BH7:BH12) -> 0 | BI13: 0 | BJ13: 0 | BK13: 0 | BL13: 0 | BM13: 0 | BN13: 0 | BO13: 0 | BP13: 0 | BR13: =SUM(BR7:BR12) -> 0 | BS13: =SUM(BS7:BS12) -> 0 | BT13: 0 | BU13: 0 | BV13: 0 | BW13: 0 | BX13: 0 | BY13: 0 | BZ13: 0 | CA13: 0 | CC13: =SUM(CC7:CC12) -> 333478.8 | CD13: =SUM(CD7:CD12) -> 1272765.733 | CE13: 609687.7 | CF13: 0 | CG13: 0 | CH13: 0 | CI13: 838400 | CJ13: 59401.48416 | CK13: 0 | CL13: 0
D259: Totals

Sheet 2024-2025
B1: Project Costs in 2024-2025
G4: Total Cost £K | R4: Funding source % | Z4: Licensee Compulsory Contribution/Direct Benefits | AK4: Scottish Government | AV4: Project Partner 2 | BG4: Project Partner 3 | BR4: Licensee Extra Contribution | CC4: Outstanding Funding Required
G5: Labour | H5: Equipment | I5: Contractors | J5: IT | K5: IPR Costs | L5: Travel & Expenses | M5: Payments to users | N5: Contingency | O5: Decommissioning | P5: Other | R5: Licensee Compulsory Contribution /Direct Benefits | S5: Scottish Government | T5: Project Partner 2 | U5: Project Partner 3 | V5: Licensee Extra Contribution | W5: Oustanding Funding Required | X5: Total | Z5: Labour | AA5: Equipment | AB5: Contractors | AC5: IT | AD5: IPR Costs | AE5: Travel & Expenses | AF5: Payments to users | AG5: Contingency | AH5: Decommissioning | AI5: Other | AK5: Labour | AL5: Equipment | AM5: Contractors | AN5: IT | AO5: IPR Costs | AP5: Travel & Expenses | AQ5: Payments to users | AR5: Contingency | AS5: Decommissioning | AT5: Other | AV5: Labour | AW5: Equipment | AX5: Contractors | AY5: IT | AZ5: IPR Costs | BA5: Travel & Expenses | BB5: Payments to users | BC5: Contingency | BD5: Decommissioning | BE5: Other | BG5: Labour | BH5: Equipment | BI5: Contractors | BJ5: IT | BK5: IPR Costs | BL5: Travel & Expenses | BM5: Payments to users | BN5: Contingency | BO5: Decommissioning | BP5: Other | BR5: Labour | BS5: Equipment | BT5: Contractors | BU5: IT | BV5: IPR Costs | BW5: Travel & Expenses | BX5: Payments to users | BY5: Contingency | BZ5: Decommissioning | CA5: Other | CC5: Labour | CD5: Equipment | CE5: Contractors | CF5: IT | CG5: IPR Costs | CH5: Travel & Expenses | CI5: Payments to users | CJ5: Contingency | CK5: Decommissioning | CL5: Other
B6: Description | C6: Task | D6: Project Workstream
B7: Pre NIC | H7: 0 | I7: 0 | N7: 0 | X7: =SUM(R7:W7) -> 0 | Z7: =$R7*G7 -> 0 | AA7: =$R7*H7 -> 0 | AB7: 0 | AC7: 0 | AD7: 0 | AE7: 0 | AF7: 0 | AG7: 0 | AH7: 0 | AI7: 0 | AK7: =$S7*G7 -> 0 | AL7: =$S7*H7 -> 0 | AM7: 0 | AN7: 0 | AO7: 0 | AP7: 0 | AQ7: 0 | AR7: 0 | AS7: 0 | AT7: 0 | AV7: =$T7*G7 -> 0 | AW7: =$T7*H7 -> 0 | AX7: 0 | AY7: 0 | AZ7: 0 | BA7: 0 | BB7: 0 | BC7: 0 | BD7: 0 | BE7: 0 | BG7: =$U7*G7 -> 0 | BH7: =$U7*H7 -> 0 | BI7: 0 | BJ7: 0 | BK7: 0 | BL7: 0 | BM7: 0 | BN7: 0 | BO7: 0 | BP7: 0 | BR7: =$V7*G7 -> 0 | BS7: =$V7*H7 -> 0 | BT7: 0 | BU7: 0 | BV7: 0 | BW7: 0 | BX7: 0 | BY7: 0 | BZ7: 0 | CA7: 0 | CC7: =$W7*G7 -> 0 | CD7: =$W7*H7 -> 0 | CE7: 0 | CF7: 0 | CG7: 0 | CH7: 0 | CI7: 0 | CJ7: 0 | CK7: 0 | CL7: 0
B8: Pre Construction and Demonstration Facility | G8: 0 | H8: 12000 | I8: 0 | N8: 273.0649112 | W8: 1 | X8: =SUM(R8:W8) -> 1 | Z8: =$R8*G8 -> 0 | AA8: =$R8*H8 -> 0 | AB8: =$R8*I8 -> 0 | AC8: =$R8*J8 -> 0 | AD8: =$R8*K8 -> 0 | AE8: =$R8*L8 -> 0 | AF8: =$R8*M8 -> 0 | AG8: =$R8*N8 -> 0 | AH8: =$R8*O8 -> 0 | AI8: =$R8*P8 -> 0 | AK8: =$S8*G8 -> 0 | AL8: =$S8*H8 -> 0 | AM8: =$S8*I8 -> 0 | AN8: =$S8*J8 -> 0 | AO8: =$S8*K8 -> 0 | AP8: =$S8*L8 -> 0 | AQ8: =$S8*M8 -> 0 | AR8: =$S8*N8 -> 0 | AS8: =$S8*O8 -> 0 | AT8: =$S8*P8 -> 0 | AV8: =$T8*G8 -> 0 | AW8: =$T8*H8 -> 0 | AX8: =$T8*I8 -> 0 | AY8: =$T8*J8 -> 0 | AZ8: =$T8*K8 -> 0 | BA8: =$T8*L8 -> 0 | BB8: =$T8*M8 -> 0 | BC8: =$T8*N8 -> 0 | BD8: =$T8*O8 -> 0 | BE8: =$T8*P8 -> 0 | BG8: =$U8*G8 -> 0 | BH8: =$U8*H8 -> 0 | BI8: =$U8*I8 -> 0 | BJ8: =$U8*J8 -> 0 | BK8: =$U8*K8 -> 0 | BL8: =$U8*L8 -> 0 | BM8: =$U8*M8 -> 0 | BN8: =$U8*N8 -> 0 | BO8: =$U8*O8 -> 0 | BP8: =$U8*P8 -> 0 | BR8: =$V8*G8 -> 0 | BS8: =$V8*H8 -> 0 | BT8: =$V8*I8 -> 0 | BU8: =$V8*J8 -> 0 | BV8: =$V8*K8 -> 0 | BW8: =$V8*L8 -> 0 | BX8: =$V8*M8 -> 0 | BY8: =$V8*N8 -> 0 | BZ8: =$V8*O8 -> 0 | CA8: =$V8*P8 -> 0 | CC8: =$W8*G8 -> 0 | CD8: =$W8*H8 -> 12000 | CE8: =$W8*I8 -> 0 | CF8: =$W8*J8 -> 0 | CG8: =$W8*K8 -> 0 | CH8: =$W8*L8 -> 0 | CI8: =$W8*M8 -> 0 | CJ8: =$W8*N8 -> 273.0649112 | CK8: =$W8*O8 -> 0 | CL8: =$W8*P8 -> 0
B9: Construction | G9: 0 | H9: 0 | I9: 0 | N9: 0 | X9: 0 | Z9: 0 | AA9: 0 | AB9: 0 | AC9: 0 | AD9: 0 | AE9: 0 | AF9: 0 | AG9: 0 | AH9: 0 | AI9: 0 | AK9: 0 | AL9: 0 | AM9: 0 | AN9: 0 | AO9: 0 | AP9: 0 | AQ9: 0 | AR9: 0 | AS9: 0 | AT9: 0 | AV9: 0 | AW9: 0 | AX9: 0 | AY9: 0 | AZ9: 0 | BA9: 0 | BB9: 0 | BC9: 0 | BD9: 0 | BE9: 0 | BG9: 0 | BH9: 0 | BI9: 0 | BJ9: 0 | BK9: 0 | BL9: 0 | BM9: 0 | BN9: 0 | BO9: 0 | BP9: 0 | BR9: 0 | BS9: 0 | BT9: 0 | BU9: 0 | BV9: 0 | BW9: 0 | BX9: 0 | BY9: 0 | BZ9: 0 | CA9: 0 | CC9: 0 | CD9: 0 | CE9: 0 | CF9: 0 | CG9: 0 | CH9: 0 | CI9: 0 | CJ9: 0 | CK9: 0 | CL9: 0
B10: Customer Works | H10: 30252.4 | I10: 0 | N10: 703.0682715 | W10: 1 | X10: =SUM(R10:W10) -> 1 | Z10: =$R10*G10 -> 0 | AA10: =$R10*H10 -> 0 | AB10: =$R10*I10 -> 0 | AC10: =$R10*J10 -> 0 | AD10: =$R10*K10 -> 0 | AE10: =$R10*L10 -> 0 | AF10: =$R10*M10 -> 0 | AG10: =$R10*N10 -> 0 | AH10: =$R10*O10 -> 0 | AI10: =$R10*P10 -> 0 | AK10: =$S10*G10 -> 0 | AL10: =$S10*H10 -> 0 | AM10: =$S10*I10 -> 0 | AN10: =$S10*J10 -> 0 | AO10: =$S10*K10 -> 0 | AP10: =$S10*L10 -> 0 | AQ10: =$S10*M10 -> 0 | AR10: =$S10*N10 -> 0 | AS10: =$S10*O10 -> 0 | AT10: =$S10*P10 -> 0 | AV10: =$T10*G10 -> 0 | AW10: =$T10*H10 -> 0 | AX10: =$T10*I10 -> 0 | AY10: =$T10*J10 -> 0 | AZ10: =$T10*K10 -> 0 | BA10: =$T10*L10 -> 0 | BB10: =$T10*M10 -> 0 | BC10: =$T10*N10 -> 0 | BD10: =$T10*O10 -> 0 | BE10: =$T10*P10 -> 0 | BG10: =$U10*G10 -> 0 | BH10: =$U10*H10 -> 0 | BI10: =$U10*I10 -> 0 | BJ10: =$U10*J10 -> 0 | BK10: =$U10*K10 -> 0 | BL10: =$U10*L10 -> 0 | BM10: =$U10*M10 -> 0 | BN10: =$U10*N10 -> 0 | BO10: =$U10*O10 -> 0 | BP10: =$U10*P10 -> 0 | BR10: 0 | BS10: 0 | BT10: 0 | BU10: 0 | BV10: 0 | BW10: 0 | BX10: 0 | BY10: 0 | BZ10: 0 | CA10: 0 | CC10: =$W10*G10 -> 0 | CD10: =$W10*H10 -> 30252.4 | CE10: =$W10*I10 -> 0 | CF10: =$W10*J10 -> 0 | CG10: =$W10*K10 -> 0 | CH10: =$W10*L10 -> 0 | CI10: =$W10*M10 -> 0 | CJ10: =$W10*N10 -> 703.0682715 | CK10: =$W10*O10 -> 0 | CL10: =$W10*P10 -> 0
B11: Operational Phase | G11: 333478.8 | H11: 0 | I11: 275742.7 | M11: 838400 | N11: 14744.98903 | W11: 1 | X11: 1 | Z11: 0 | AA11: 0 | AB11: 0 | AC11: 0 | AD11: 0 | AE11: 0 | AF11: 0 | AG11: 0 | AH11: 0 | AI11: 0 | AK11: 0 | AL11: 0 | AM11: 0 | AN11: 0 | AO11: 0 | AP11: 0 | AQ11: 0 | AR11: 0 | AS11: 0 | AT11: 0 | AV11: 0 | AW11: 0 | AX11: 0 | AY11: 0 | AZ11: 0 | BA11: 0 | BB11: 0 | BC11: 0 | BD11: 0 | BE11: 0 | BG11: 0 | BH11: 0 | BI11: 0 | BJ11: 0 | BK11: 0 | BL11: 0 | BM11: 0 | BN11: 0 | BO11: 0 | BP11: 0 | BR11: =$V11*G11 -> 0 | BS11: =$V11*H11 -> 0 | BT11: =$V11*I11 -> 0 | BU11: =$V11*J11 -> 0 | BV11: =$V11*K11 -> 0 | BW11: =$V11*L11 -> 0 | BX11: =$V11*M11 -> 0 | BY11: =$V11*N11 -> 0 | BZ11: =$V11*O11 -> 0 | CA11: =$V11*P11 -> 0 | CC11: 333478.8 | CD11: 0 | CE11: 275742.7 | CF11: 0 | CG11: 0 | CH11: 0 | CI11: 838400 | CJ11: 14744.98903 | CK11: 0 | CL11: 0
B12: Support Services | H12: 13208.33333 | I12: 64675 | N12: 1842.806825 | Q12: Total Cost | W12: 1 | X12: =SUM(R12:W12) -> 1 | Z12: =$R12*G12 -> 0 | AA12: 0 | AB12: 0 | AC12: 0 | AD12: 0 | AE12: 0 | AF12: 0 | AG12: 0 | AH12: 0 | AI12: 0 | AK12: =$S12*G12 -> 0 | AL12: 0 | AM12: 0 | AN12: 0 | AO12: 0 | AP12: 0 | AQ12: 0 | AR12: 0 | AS12: 0 | AT12: 0 | AV12: =$T12*G12 -> 0 | AW12: 0 | AX12: 0 | AY12: 0 | AZ12: 0 | BA12: 0 | BB12: 0 | BC12: 0 | BD12: 0 | BE12: 0 | BG12: =$U12*G12 -> 0 | BH12: 0 | BI12: 0 | BJ12: 0 | BK12: 0 | BL12: 0 | BM12: 0 | BN12: 0 | BO12: 0 | BP12: 0 | BR12: =$V12*G12 -> 0 | BS12: 0 | BT12: 0 | BU12: 0 | BV12: 0 | BW12: 0 | BX12: 0 | BY12: 0 | BZ12: 0 | CA12: 0 | CC12: =$W12*G12 -> 0 | CD12: 13208.33333 | CE12: 64675 | CF12: 0 | CG12: 0 | CH12: 0 | CI12: 0 | CJ12: 1842.806825 | CK12: 0 | CL12: 0
B13: Total | G13: =SUM(G7:G12) -> 333478.8 | H13: =SUM(H7:H12) -> 55460.73333 | I13: 340417.7 | J13: 0 | K13: 0 | L13: 0 | M13: 838400 | N13: 17563.92903 | O13: 0 | P13: 0 | Q13: =SUM(G13:P13) -> 1585321.162 | Z13: =SUM(Z7:Z12) -> 0 | AA13: =SUM(AA7:AA12) -> 0 | AB13: 0 | AC13: 0 | AD13: 0 | AE13: 0 | AF13: 0 | AG13: 0 | AH13: 0 | AI13: 0 | AK13: =SUM(AK7:AK12) -> 0 | AL13: =SUM(AL7:AL12) -> 0 | AM13: 0 | AN13: 0 | AO13: 0 | AP13: 0 | AQ13: 0 | AR13: 0 | AS13: 0 | AT13: 0 | AV13: =SUM(AV7:AV12) -> 0 | AW13: =SUM(AW7:AW12) -> 0 | AX13: 0 | AY13: 0 | AZ13: 0 | BA13: 0 | BB13: 0 | BC13: 0 | BD13: 0 | BE13: 0 | BG13: =SUM(BG7:BG12) -> 0 | BH13: =SUM(BH7:BH12) -> 0 | BI13: 0 | BJ13: 0 | BK13: 0 | BL13: 0 | BM13: 0 | BN13: 0 | BO13: 0 | BP13: 0 | BR13: =SUM(BR7:BR12) -> 0 | BS13: =SUM(BS7:BS12) -> 0 | BT13: 0 | BU13: 0 | BV13: 0 | BW13: 0 | BX13: 0 | BY13: 0 | BZ13: 0 | CA13: 0 | CC13: =SUM(CC7:CC12) -> 333478.8 | CD13: =SUM(CD7:CD12) -> 55460.73333 | CE13: 340417.7 | CF13: 0 | CG13: 0 | CH13: 0 | CI13: 838400 | CJ13: 17563.92903 | CK13: 0 | CL13: 0
D259: Totals

Sheet 2025-2026
B1: Project Costs in 2025-2026
G4: Total Cost £K | R4: Funding source % | Z4: Licensee Compulsory Contribution/Direct Benefits | AK4: Scottish Government | AV4: Project Partner 2 | BG4: Project Partner 3 | BR4: Licensee Extra Contribution | CC4: Outstanding Funding Required
G5: Labour | H5: Equipment | I5: Contractors | J5: IT | K5: IPR Costs | L5: Travel & Expenses | M5: Payments to users | N5: Contingency | O5: Decommissioning | P5: Other | R5: Licensee Compulsory Contribution /Direct Benefits | S5: Scottish Government | T5: Project Partner 2 | U5: Project Partner 3 | V5: Licensee Extra Contribution | W5: Oustanding Funding Required | X5: Total | Z5: Labour | AA5: Equipment | AB5: Contractors | AC5: IT | AD5: IPR Costs | AE5: Travel & Expenses | AF5: Payments to users | AG5: Contingency | AH5: Decommissioning | AI5: Other | AK5: Labour | AL5: Equipment | AM5: Contractors | AN5: IT | AO5: IPR Costs | AP5: Travel & Expenses | AQ5: Payments to users | AR5: Contingency | AS5: Decommissioning | AT5: Other | AV5: Labour | AW5: Equipment | AX5: Contractors | AY5: IT | AZ5: IPR Costs | BA5: Travel & Expenses | BB5: Payments to users | BC5: Contingency | BD5: Decommissioning | BE5: Other | BG5: Labour | BH5: Equipment | BI5: Contractors | BJ5: IT | BK5: IPR Costs | BL5: Travel & Expenses | BM5: Payments to users | BN5: Contingency | BO5: Decommissioning | BP5: Other | BR5: Labour | BS5: Equipment | BT5: Contractors | BU5: IT | BV5: IPR Costs | BW5: Travel & Expenses | BX5: Payments to users | BY5: Contingency | BZ5: Decommissioning | CA5: Other | CC5: Labour | CD5: Equipment | CE5: Contractors | CF5: IT | CG5: IPR Costs | CH5: Travel & Expenses | CI5: Payments to users | CJ5: Contingency | CK5: Decommissioning | CL5: Other
B6: Description | C6: Task | D6: Project Workstream
B7: Pre NIC | H7: 0 | I7: 0 | N7: 0 | X7: =SUM(R7:W7) -> 0 | Z7: =$R7*G7 -> 0 | AA7: =$R7*H7 -> 0 | AB7: 0 | AC7: 0 | AD7: 0 | AE7: 0 | AF7: 0 | AG7: 0 | AH7: 0 | AI7: 0 | AK7: =$S7*G7 -> 0 | AL7: =$S7*H7 -> 0 | AM7: 0 | AN7: 0 | AO7: 0 | AP7: 0 | AQ7: 0 | AR7: 0 | AS7: 0 | AT7: 0 | AV7: =$T7*G7 -> 0 | AW7: =$T7*H7 -> 0 | AX7: 0 | AY7: 0 | AZ7: 0 | BA7: 0 | BB7: 0 | BC7: 0 | BD7: 0 | BE7: 0 | BG7: =$U7*G7 -> 0 | BH7: =$U7*H7 -> 0 | BI7: 0 | BJ7: 0 | BK7: 0 | BL7: 0 | BM7: 0 | BN7: 0 | BO7: 0 | BP7: 0 | BR7: =$V7*G7 -> 0 | BS7: =$V7*H7 -> 0 | BT7: 0 | BU7: 0 | BV7: 0 | BW7: 0 | BX7: 0 | BY7: 0 | BZ7: 0 | CA7: 0 | CC7: =$W7*G7 -> 0 | CD7: =$W7*H7 -> 0 | CE7: 0 | CF7: 0 | CG7: 0 | CH7: 0 | CI7: 0 | CJ7: 0 | CK7: 0 | CL7: 0
B8: Pre Construction and Demonstration Facility | G8: 0 | H8: 12000 | I8: 0 | N8: 273.0649112 | W8: 1 | X8: =SUM(R8:W8) -> 1 | Z8: =$R8*G8 -> 0 | AA8: =$R8*H8 -> 0 | AB8: =$R8*I8 -> 0 | AC8: =$R8*J8 -> 0 | AD8: =$R8*K8 -> 0 | AE8: =$R8*L8 -> 0 | AF8: =$R8*M8 -> 0 | AG8: =$R8*N8 -> 0 | AH8: =$R8*O8 -> 0 | AI8: =$R8*P8 -> 0 | AK8: =$S8*G8 -> 0 | AL8: =$S8*H8 -> 0 | AM8: =$S8*I8 -> 0 | AN8: =$S8*J8 -> 0 | AO8: =$S8*K8 -> 0 | AP8: =$S8*L8 -> 0 | AQ8: =$S8*M8 -> 0 | AR8: =$S8*N8 -> 0 | AS8: =$S8*O8 -> 0 | AT8: =$S8*P8 -> 0 | AV8: =$T8*G8 -> 0 | AW8: =$T8*H8 -> 0 | AX8: =$T8*I8 -> 0 | AY8: =$T8*J8 -> 0 | AZ8: =$T8*K8 -> 0 | BA8: =$T8*L8 -> 0 | BB8: =$T8*M8 -> 0 | BC8: =$T8*N8 -> 0 | BD8: =$T8*O8 -> 0 | BE8: =$T8*P8 -> 0 | BG8: =$U8*G8 -> 0 | BH8: =$U8*H8 -> 0 | BI8: =$U8*I8 -> 0 | BJ8: =$U8*J8 -> 0 | BK8: =$U8*K8 -> 0 | BL8: =$U8*L8 -> 0 | BM8: =$U8*M8 -> 0 | BN8: =$U8*N8 -> 0 | BO8: =$U8*O8 -> 0 | BP8: =$U8*P8 -> 0 | BR8: =$V8*G8 -> 0 | BS8: =$V8*H8 -> 0 | BT8: =$V8*I8 -> 0 | BU8: =$V8*J8 -> 0 | BV8: =$V8*K8 -> 0 | BW8: =$V8*L8 -> 0 | BX8: =$V8*M8 -> 0 | BY8: =$V8*N8 -> 0 | BZ8: =$V8*O8 -> 0 | CA8: =$V8*P8 -> 0 | CC8: =$W8*G8 -> 0 | CD8: =$W8*H8 -> 12000 | CE8: =$W8*I8 -> 0 | CF8: =$W8*J8 -> 0 | CG8: =$W8*K8 -> 0 | CH8: =$W8*L8 -> 0 | CI8: =$W8*M8 -> 0 | CJ8: =$W8*N8 -> 273.0649112 | CK8: =$W8*O8 -> 0 | CL8: =$W8*P8 -> 0
B9: Construction | G9: 0 | H9: 0 | I9: 0 | N9: 0 | X9: 0 | Z9: 0 | AA9: 0 | AB9: 0 | AC9: 0 | AD9: 0 | AE9: 0 | AF9: 0 | AG9: 0 | AH9: 0 | AI9: 0 | AK9: 0 | AL9: 0 | AM9: 0 | AN9: 0 | AO9: 0 | AP9: 0 | AQ9: 0 | AR9: 0 | AS9: 0 | AT9: 0 | AV9: 0 | AW9: 0 | AX9: 0 | AY9: 0 | AZ9: 0 | BA9: 0 | BB9: 0 | BC9: 0 | BD9: 0 | BE9: 0 | BG9: 0 | BH9: 0 | BI9: 0 | BJ9: 0 | BK9: 0 | BL9: 0 | BM9: 0 | BN9: 0 | BO9: 0 | BP9: 0 | BR9: 0 | BS9: 0 | BT9: 0 | BU9: 0 | BV9: 0 | BW9: 0 | BX9: 0 | BY9: 0 | BZ9: 0 | CA9: 0 | CC9: 0 | CD9: 0 | CE9: 0 | CF9: 0 | CG9: 0 | CH9: 0 | CI9: 0 | CJ9: 0 | CK9: 0 | CL9: 0
B10: Customer Works | H10: 30252.4 | I10: 0 | N10: 703.0682715 | W10: 1 | X10: =SUM(R10:W10) -> 1 | Z10: =$R10*G10 -> 0 | AA10: =$R10*H10 -> 0 | AB10: =$R10*I10 -> 0 | AC10: =$R10*J10 -> 0 | AD10: =$R10*K10 -> 0 | AE10: =$R10*L10 -> 0 | AF10: =$R10*M10 -> 0 | AG10: =$R10*N10 -> 0 | AH10: =$R10*O10 -> 0 | AI10: =$R10*P10 -> 0 | AK10: =$S10*G10 -> 0 | AL10: =$S10*H10 -> 0 | AM10: =$S10*I10 -> 0 | AN10: =$S10*J10 -> 0 | AO10: =$S10*K10 -> 0 | AP10: =$S10*L10 -> 0 | AQ10: =$S10*M10 -> 0 | AR10: =$S10*N10 -> 0 | AS10: =$S10*O10 -> 0 | AT10: =$S10*P10 -> 0 | AV10: =$T10*G10 -> 0 | AW10: =$T10*H10 -> 0 | AX10: =$T10*I10 -> 0 | AY10: =$T10*J10 -> 0 | AZ10: =$T10*K10 -> 0 | BA10: =$T10*L10 -> 0 | BB10: =$T10*M10 -> 0 | BC10: =$T10*N10 -> 0 | BD10: =$T10*O10 -> 0 | BE10: =$T10*P10 -> 0 | BG10: =$U10*G10 -> 0 | BH10: =$U10*H10 -> 0 | BI10: =$U10*I10 -> 0 | BJ10: =$U10*J10 -> 0 | BK10: =$U10*K10 -> 0 | BL10: =$U10*L10 -> 0 | BM10: =$U10*M10 -> 0 | BN10: =$U10*N10 -> 0 | BO10: =$U10*O10 -> 0 | BP10: =$U10*P10 -> 0 | BR10: 0 | BS10: 0 | BT10: 0 | BU10: 0 | BV10: 0 | BW10: 0 | BX10: 0 | BY10: 0 | BZ10: 0 | CA10: 0 | CC10: =$W10*G10 -> 0 | CD10: =$W10*H10 -> 30252.4 | CE10: =$W10*I10 -> 0 | CF10: =$W10*J10 -> 0 | CG10: =$W10*K10 -> 0 | CH10: =$W10*L10 -> 0 | CI10: =$W10*M10 -> 0 | CJ10: =$W10*N10 -> 703.0682715 | CK10: =$W10*O10 -> 0 | CL10: =$W10*P10 -> 0
B11: Operational Phase | G11: 333478.8 | H11: 0 | I11: 275742.7 | M11: 838400 | N11: 14744.98903 | W11: 1 | X11: 1 | Z11: 0 | AA11: 0 | AB11: 0 | AC11: 0 | AD11: 0 | AE11: 0 | AF11: 0 | AG11: 0 | AH11: 0 | AI11: 0 | AK11: 0 | AL11: 0 | AM11: 0 | AN11: 0 | AO11: 0 | AP11: 0 | AQ11: 0 | AR11: 0 | AS11: 0 | AT11: 0 | AV11: 0 | AW11: 0 | AX11: 0 | AY11: 0 | AZ11: 0 | BA11: 0 | BB11: 0 | BC11: 0 | BD11: 0 | BE11: 0 | BG11: 0 | BH11: 0 | BI11: 0 | BJ11: 0 | BK11: 0 | BL11: 0 | BM11: 0 | BN11: 0 | BO11: 0 | BP11: 0 | BR11: =$V11*G11 -> 0 | BS11: =$V11*H11 -> 0 | BT11: =$V11*I11 -> 0 | BU11: =$V11*J11 -> 0 | BV11: =$V11*K11 -> 0 | BW11: =$V11*L11 -> 0 | BX11: =$V11*M11 -> 0 | BY11: =$V11*N11 -> 0 | BZ11: =$V11*O11 -> 0 | CA11: =$V11*P11 -> 0 | CC11: 333478.8 | CD11: 0 | CE11: 275742.7 | CF11: 0 | CG11: 0 | CH11: 0 | CI11: 838400 | CJ11: 14744.98903 | CK11: 0 | CL11: 0
B12: Support Services | H12: 13208.33333 | I12: 64675 | N12: 1842.806825 | Q12: Total Cost | W12: 1 | X12: =SUM(R12:W12) -> 1 | Z12: =$R12*G12 -> 0 | AA12: 0 | AB12: 0 | AC12: 0 | AD12: 0 | AE12: 0 | AF12: 0 | AG12: 0 | AH12: 0 | AI12: 0 | AK12: =$S12*G12 -> 0 | AL12: 0 | AM12: 0 | AN12: 0 | AO12: 0 | AP12: 0 | AQ12: 0 | AR12: 0 | AS12: 0 | AT12: 0 | AV12: =$T12*G12 -> 0 | AW12: 0 | AX12: 0 | AY12: 0 | AZ12: 0 | BA12: 0 | BB12: 0 | BC12: 0 | BD12: 0 | BE12: 0 | BG12: =$U12*G12 -> 0 | BH12: 0 | BI12: 0 | BJ12: 0 | BK12: 0 | BL12: 0 | BM12: 0 | BN12: 0 | BO12: 0 | BP12: 0 | BR12: =$V12*G12 -> 0 | BS12: 0 | BT12: 0 | BU12: 0 | BV12: 0 | BW12: 0 | BX12: 0 | BY12: 0 | BZ12: 0 | CA12: 0 | CC12: =$W12*G12 -> 0 | CD12: 13208.33333 | CE12: 64675 | CF12: 0 | CG12: 0 | CH12: 0 | CI12: 0 | CJ12: 1842.806825 | CK12: 0 | CL12: 0
B13: Total | G13: =SUM(G7:G12) -> 333478.8 | H13: =SUM(H7:H12) -> 55460.73333 | I13: 340417.7 | J13: 0 | K13: 0 | L13: 0 | M13: 838400 | N13: 17563.92903 | O13: 0 | P13: 0 | Q13: =SUM(G13:P13) -> 1585321.162 | Z13: =SUM(Z7:Z12) -> 0 | AA13: =SUM(AA7:AA12) -> 0 | AB13: 0 | AC13: 0 | AD13: 0 | AE13: 0 | AF13: 0 | AG13: 0 | AH13: 0 | AI13: 0 | AK13: =SUM(AK7:AK12) -> 0 | AL13: =SUM(AL7:AL12) -> 0 | AM13: 0 | AN13: 0 | AO13: 0 | AP13: 0 | AQ13: 0 | AR13: 0 | AS13: 0 | AT13: 0 | AV13: =SUM(AV7:AV12) -> 0 | AW13: =SUM(AW7:AW12) -> 0 | AX13: 0 | AY13: 0 | AZ13: 0 | BA13: 0 | BB13: 0 | BC13: 0 | BD13: 0 | BE13: 0 | BG13: =SUM(BG7:BG12) -> 0 | BH13: =SUM(BH7:BH12) -> 0 | BI13: 0 | BJ13: 0 | BK13: 0 | BL13: 0 | BM13: 0 | BN13: 0 | BO13: 0 | BP13: 0 | BR13: =SUM(BR7:BR12) -> 0 | BS13: =SUM(BS7:BS12) -> 0 | BT13: 0 | BU13: 0 | BV13: 0 | BW13: 0 | BX13: 0 | BY13: 0 | BZ13: 0 | CA13: 0 | CC13: =SUM(CC7:CC12) -> 333478.8 | CD13: =SUM(CD7:CD12) -> 55460.73333 | CE13: 340417.7 | CF13: 0 | CG13: 0 | CH13: 0 | CI13: 838400 | CJ13: 17563.92903 | CK13: 0 | CL13: 0
D259: Totals

Sheet 2026-2027
B1: Project Costs in 2026-2027
G4: Total Cost £K | R4: Funding source % | Z4: Licensee Compulsory Contribution/Direct Benefits | AK4: Scottish Government | AV4: Project Partner 2 | BG4: Project Partner 3 | BR4: Licensee Extra Contribution | CC4: Outstanding Funding Required
G5: Labour | H5: Equipment | I5: Contractors | J5: IT | K5: IPR Costs | L5: Travel & Expenses | M5: Payments to users | N5: Contingency | O5: Decommissioning | P5: Other | R5: Licensee Compulsory Contribution /Direct Benefits | S5: Scottish Government | T5: Project Partner 2 | U5: Project Partner 3 | V5: Licensee Extra Contribution | W5: Oustanding Funding Required | X5: Total | Z5: Labour | AA5: Equipment | AB5: Contractors | AC5: IT | AD5: IPR Costs | AE5: Travel & Expenses | AF5: Payments to users | AG5: Contingency | AH5: Decommissioning | AI5: Other | AK5: Labour | AL5: Equipment | AM5: Contractors | AN5: IT | AO5: IPR Costs | AP5: Travel & Expenses | AQ5: Payments to users | AR5: Contingency | AS5: Decommissioning | AT5: Other | AV5: Labour | AW5: Equipment | AX5: Contractors | AY5: IT | AZ5: IPR Costs | BA5: Travel & Expenses | BB5: Payments to users | BC5: Contingency | BD5: Decommissioning | BE5: Other | BG5: Labour | BH5: Equipment | BI5: Contractors | BJ5: IT | BK5: IPR Costs | BL5: Travel & Expenses | BM5: Payments to users | BN5: Contingency | BO5: Decommissioning | BP5: Other | BR5: Labour | BS5: Equipment | BT5: Contractors | BU5: IT | BV5: IPR Costs | BW5: Travel & Expenses | BX5: Payments to users | BY5: Contingency | BZ5: Decommissioning | CA5: Other | CC5: Labour | CD5: Equipment | CE5: Contractors | CF5: IT | CG5: IPR Costs | CH5: Travel & Expenses | CI5: Payments to users | CJ5: Contingency | CK5: Decommissioning | CL5: Other
B6: Description | C6: Task | D6: Project Workstream
B7: Pre NIC | H7: 0 | I7: 0 | N7: 0 | X7: =SUM(R7:W7) -> 0 | Z7: =$R7*G7 -> 0 | AA7: =$R7*H7 -> 0 | AB7: 0 | AC7: 0 | AD7: 0 | AE7: 0 | AF7: 0 | AG7: 0 | AH7: 0 | AI7: 0 | AK7: =$S7*G7 -> 0 | AL7: =$S7*H7 -> 0 | AM7: 0 | AN7: 0 | AO7: 0 | AP7: 0 | AQ7: 0 | AR7: 0 | AS7: 0 | AT7: 0 | AV7: =$T7*G7 -> 0 | AW7: =$T7*H7 -> 0 | AX7: 0 | AY7: 0 | AZ7: 0 | BA7: 0 | BB7: 0 | BC7: 0 | BD7: 0 | BE7: 0 | BG7: =$U7*G7 -> 0 | BH7: =$U7*H7 -> 0 | BI7: 0 | BJ7: 0 | BK7: 0 | BL7: 0 | BM7: 0 | BN7: 0 | BO7: 0 | BP7: 0 | BR7: =$V7*G7 -> 0 | BS7: =$V7*H7 -> 0 | BT7: 0 | BU7: 0 | BV7: 0 | BW7: 0 | BX7: 0 | BY7: 0 | BZ7: 0 | CA7: 0 | CC7: =$W7*G7 -> 0 | CD7: =$W7*H7 -> 0 | CE7: 0 | CF7: 0 | CG7: 0 | CH7: 0 | CI7: 0 | CJ7: 0 | CK7: 0 | CL7: 0
B8: Pre Construction and Demonstration Facility | G8: 0 | H8: 12000 | I8: 0 | N8: 273.0649112 | W8: 1 | X8: =SUM(R8:W8) -> 1 | Z8: =$R8*G8 -> 0 | AA8: =$R8*H8 -> 0 | AB8: =$R8*I8 -> 0 | AC8: =$R8*J8 -> 0 | AD8: =$R8*K8 -> 0 | AE8: =$R8*L8 -> 0 | AF8: =$R8*M8 -> 0 | AG8: =$R8*N8 -> 0 | AH8: =$R8*O8 -> 0 | AI8: =$R8*P8 -> 0 | AK8: =$S8*G8 -> 0 | AL8: =$S8*H8 -> 0 | AM8: =$S8*I8 -> 0 | AN8: =$S8*J8 -> 0 | AO8: =$S8*K8 -> 0 | AP8: =$S8*L8 -> 0 | AQ8: =$S8*M8 -> 0 | AR8: =$S8*N8 -> 0 | AS8: =$S8*O8 -> 0 | AT8: =$S8*P8 -> 0 | AV8: =$T8*G8 -> 0 | AW8: =$T8*H8 -> 0 | AX8: =$T8*I8 -> 0 | AY8: =$T8*J8 -> 0 | AZ8: =$T8*K8 -> 0 | BA8: =$T8*L8 -> 0 | BB8: =$T8*M8 -> 0 | BC8: =$T8*N8 -> 0 | BD8: =$T8*O8 -> 0 | BE8: =$T8*P8 -> 0 | BG8: =$U8*G8 -> 0 | BH8: =$U8*H8 -> 0 | BI8: =$U8*I8 -> 0 | BJ8: =$U8*J8 -> 0 | BK8: =$U8*K8 -> 0 | BL8: =$U8*L8 -> 0 | BM8: =$U8*M8 -> 0 | BN8: =$U8*N8 -> 0 | BO8: =$U8*O8 -> 0 | BP8: =$U8*P8 -> 0 | BR8: =$V8*G8 -> 0 | BS8: =$V8*H8 -> 0 | BT8: =$V8*I8 -> 0 | BU8: =$V8*J8 -> 0 | BV8: =$V8*K8 -> 0 | BW8: =$V8*L8 -> 0 | BX8: =$V8*M8 -> 0 | BY8: =$V8*N8 -> 0 | BZ8: =$V8*O8 -> 0 | CA8: =$V8*P8 -> 0 | CC8: =$W8*G8 -> 0 | CD8: =$W8*H8 -> 12000 | CE8: =$W8*I8 -> 0 | CF8: =$W8*J8 -> 0 | CG8: =$W8*K8 -> 0 | CH8: =$W8*L8 -> 0 | CI8: =$W8*M8 -> 0 | CJ8: =$W8*N8 -> 273.0649112 | CK8: =$W8*O8 -> 0 | CL8: =$W8*P8 -> 0
B9: Construction | G9: 0 | H9: 0 | I9: 0 | N9: 0 | X9: 0 | Z9: 0 | AA9: 0 | AB9: 0 | AC9: 0 | AD9: 0 | AE9: 0 | AF9: 0 | AG9: 0 | AH9: 0 | AI9: 0 | AK9: 0 | AL9: 0 | AM9: 0 | AN9: 0 | AO9: 0 | AP9: 0 | AQ9: 0 | AR9: 0 | AS9: 0 | AT9: 0 | AV9: 0 | AW9: 0 | AX9: 0 | AY9: 0 | AZ9: 0 | BA9: 0 | BB9: 0 | BC9: 0 | BD9: 0 | BE9: 0 | BG9: 0 | BH9: 0 | BI9: 0 | BJ9: 0 | BK9: 0 | BL9: 0 | BM9: 0 | BN9: 0 | BO9: 0 | BP9: 0 | BR9: 0 | BS9: 0 | BT9: 0 | BU9: 0 | BV9: 0 | BW9: 0 | BX9: 0 | BY9: 0 | BZ9: 0 | CA9: 0 | CC9: 0 | CD9: 0 | CE9: 0 | CF9: 0 | CG9: 0 | CH9: 0 | CI9: 0 | CJ9: 0 | CK9: 0 | CL9: 0
B10: Customer Works | H10: 30252.4 | I10: 0 | N10: 703.0682715 | W10: 1 | X10: =SUM(R10:W10) -> 1 | Z10: =$R10*G10 -> 0 | AA10: =$R10*H10 -> 0 | AB10: =$R10*I10 -> 0 | AC10: =$R10*J10 -> 0 | AD10: =$R10*K10 -> 0 | AE10: =$R10*L10 -> 0 | AF10: =$R10*M10 -> 0 | AG10: =$R10*N10 -> 0 | AH10: =$R10*O10 -> 0 | AI10: =$R10*P10 -> 0 | AK10: =$S10*G10 -> 0 | AL10: =$S10*H10 -> 0 | AM10: =$S10*I10 -> 0 | AN10: =$S10*J10 -> 0 | AO10: =$S10*K10 -> 0 | AP10: =$S10*L10 -> 0 | AQ10: =$S10*M10 -> 0 | AR10: =$S10*N10 -> 0 | AS10: =$S10*O10 -> 0 | AT10: =$S10*P10 -> 0 | AV10: =$T10*G10 -> 0 | AW10: =$T10*H10 -> 0 | AX10: =$T10*I10 -> 0 | AY10: =$T10*J10 -> 0 | AZ10: =$T10*K10 -> 0 | BA10: =$T10*L10 -> 0 | BB10: =$T10*M10 -> 0 | BC10: =$T10*N10 -> 0 | BD10: =$T10*O10 -> 0 | BE10: =$T10*P10 -> 0 | BG10: =$U10*G10 -> 0 | BH10: =$U10*H10 -> 0 | BI10: =$U10*I10 -> 0 | BJ10: =$U10*J10 -> 0 | BK10: =$U10*K10 -> 0 | BL10: =$U10*L10 -> 0 | BM10: =$U10*M10 -> 0 | BN10: =$U10*N10 -> 0 | BO10: =$U10*O10 -> 0 | BP10: =$U10*P10 -> 0 | BR10: 0 | BS10: 0 | BT10: 0 | BU10: 0 | BV10: 0 | BW10: 0 | BX10: 0 | BY10: 0 | BZ10: 0 | CA10: 0 | CC10: =$W10*G10 -> 0 | CD10: =$W10*H10 -> 30252.4 | CE10: =$W10*I10 -> 0 | CF10: =$W10*J10 -> 0 | CG10: =$W10*K10 -> 0 | CH10: =$W10*L10 -> 0 | CI10: =$W10*M10 -> 0 | CJ10: =$W10*N10 -> 703.0682715 | CK10: =$W10*O10 -> 0 | CL10: =$W10*P10 -> 0
B11: Operational Phase | G11: 333478.8 | H11: 172500 | I11: 525742.7 | M11: 838400 | N11: 25107.35111 | W11: 1 | X11: 1 | Z11: 0 | AA11: 0 | AB11: 0 | AC11: 0 | AD11: 0 | AE11: 0 | AF11: 0 | AG11: 0 | AH11: 0 | AI11: 0 | AK11: 0 | AL11: 0 | AM11: 0 | AN11: 0 | AO11: 0 | AP11: 0 | AQ11: 0 | AR11: 0 | AS11: 0 | AT11: 0 | AV11: 0 | AW11: 0 | AX11: 0 | AY11: 0 | AZ11: 0 | BA11: 0 | BB11: 0 | BC11: 0 | BD11: 0 | BE11: 0 | BG11: 0 | BH11: 0 | BI11: 0 | BJ11: 0 | BK11: 0 | BL11: 0 | BM11: 0 | BN11: 0 | BO11: 0 | BP11: 0 | BR11: =$V11*G11 -> 0 | BS11: =$V11*H11 -> 0 | BT11: =$V11*I11 -> 0 | BU11: =$V11*J11 -> 0 | BV11: =$V11*K11 -> 0 | BW11: =$V11*L11 -> 0 | BX11: =$V11*M11 -> 0 | BY11: =$V11*N11 -> 0 | BZ11: =$V11*O11 -> 0 | CA11: =$V11*P11 -> 0 | CC11: 333478.8 | CD11: 172500 | CE11: 525742.7 | CF11: 0 | CG11: 0 | CH11: 0 | CI11: 838400 | CJ11: 25107.35111 | CK11: 0 | CL11: 0
B12: Support Services | H12: 13208.33333 | I12: 64675 | N12: 1842.806825 | Q12: Total Cost | W12: 1 | X12: =SUM(R12:W12) -> 1 | Z12: =$R12*G12 -> 0 | AA12: 0 | AB12: 0 | AC12: 0 | AD12: 0 | AE12: 0 | AF12: 0 | AG12: 0 | AH12: 0 | AI12: 0 | AK12: =$S12*G12 -> 0 | AL12: 0 | AM12: 0 | AN12: 0 | AO12: 0 | AP12: 0 | AQ12: 0 | AR12: 0 | AS12: 0 | AT12: 0 | AV12: =$T12*G12 -> 0 | AW12: 0 | AX12: 0 | AY12: 0 | AZ12: 0 | BA12: 0 | BB12: 0 | BC12: 0 | BD12: 0 | BE12: 0 | BG12: =$U12*G12 -> 0 | BH12: 0 | BI12: 0 | BJ12: 0 | BK12: 0 | BL12: 0 | BM12: 0 | BN12: 0 | BO12: 0 | BP12: 0 | BR12: =$V12*G12 -> 0 | BS12: 0 | BT12: 0 | BU12: 0 | BV12: 0 | BW12: 0 | BX12: 0 | BY12: 0 | BZ12: 0 | CA12: 0 | CC12: =$W12*G12 -> 0 | CD12: 13208.33333 | CE12: 64675 | CF12: 0 | CG12: 0 | CH12: 0 | CI12: 0 | CJ12: 1842.806825 | CK12: 0 | CL12: 0
B13: Total | G13: =SUM(G7:G12) -> 333478.8 | H13: =SUM(H7:H12) -> 227960.7333 | I13: 590417.7 | J13: 0 | K13: 0 | L13: 0 | M13: 838400 | N13: 27926.29112 | O13: 0 | P13: 0 | Q13: =SUM(G13:P13) -> 2018183.524 | Z13: =SUM(Z7:Z12) -> 0 | AA13: =SUM(AA7:AA12) -> 0 | AB13: 0 | AC13: 0 | AD13: 0 | AE13: 0 | AF13: 0 | AG13: 0 | AH13: 0 | AI13: 0 | AK13: =SUM(AK7:AK12) -> 0 | AL13: =SUM(AL7:AL12) -> 0 | AM13: 0 | AN13: 0 | AO13: 0 | AP13: 0 | AQ13: 0 | AR13: 0 | AS13: 0 | AT13: 0 | AV13: =SUM(AV7:AV12) -> 0 | AW13: =SUM(AW7:AW12) -> 0 | AX13: 0 | AY13: 0 | AZ13: 0 | BA13: 0 | BB13: 0 | BC13: 0 | BD13: 0 | BE13: 0 | BG13: =SUM(BG7:BG12) -> 0 | BH13: =SUM(BH7:BH12) -> 0 | BI13: 0 | BJ13: 0 | BK13: 0 | BL13: 0 | BM13: 0 | BN13: 0 | BO13: 0 | BP13: 0 | BR13: =SUM(BR7:BR12) -> 0 | BS13: =SUM(BS7:BS12) -> 0 | BT13: 0 | BU13: 0 | BV13: 0 | BW13: 0 | BX13: 0 | BY13: 0 | BZ13: 0 | CA13: 0 | CC13: =SUM(CC7:CC12) -> 333478.8 | CD13: =SUM(CD7:CD12) -> 227960.7333 | CE13: 590417.7 | CF13: 0 | CG13: 0 | CH13: 0 | CI13: 838400 | CJ13: 27926.29112 | CK13: 0 | CL13: 0
D259: Totals

Sheet Whole project
B1: Whole Project
G4: Total Cost £K | R4: Funding source % | Z4: Licensee Compulsory Contribution/Direct Benefits | AK4: Scottish Government | AV4: Project Partner 2 | BG4: Project Partner 3 | BR4: Licensee Extra Contribution | CC4: Outstanding Funding Required
G5: Labour | H5: Equipment | I5: Contractors | J5: IT | K5: IPR Costs | L5: Travel & Expenses | M5: Payments to users | N5: Contingency | O5: Decommissioning | P5: Other | R5: Licensee Compulsory Contribution /Direct Benefits | S5: Scottish Government | T5: Project Partner 2 | U5: Project Partner 3 | V5: Licensee Extra Contribution | W5: Oustanding Funding Required | X5: Total | Z5: Labour | AA5: Equipment | AB5: Contractors | AC5: IT | AD5: IPR Costs | AE5: Travel & Expenses | AF5: Payments to users | AG5: Contingency | AH5: Decommissioning | AI5: Other | AK5: Labour | AL5: Equipment | AM5: Contractors | AN5: IT | AO5: IPR Costs | AP5: Travel & Expenses | AQ5: Payments to users | AR5: Contingency | AS5: Decommissioning | AT5: Other | AV5: Labour | AW5: Equipment | AX5: Contractors | AY5: IT | AZ5: IPR Costs | BA5: Travel & Expenses | BB5: Payments to users | BC5: Contingency | BD5: Decommissioning | BE5: Other | BG5: Labour | BH5: Equipment | BI5: Contractors | BJ5: IT | BK5: IPR Costs | BL5: Travel & Expenses | BM5: Payments to users | BN5: Contingency | BO5: Decommissioning | BP5: Other | BR5: Labour | BS5: Equipment | BT5: Contractors | BU5: IT | BV5: IPR Costs | BW5: Travel & Expenses | BX5: Payments to users | BY5: Contingency | BZ5: Decommissioning | CA5: Other | CC5: Labour | CD5: Equipment | CE5: Contractors | CF5: IT | CG5: IPR Costs | CH5: Travel & Expenses | CI5: Payments to users | CJ5: Contingency | CK5: Decommissioning | CL5: Other
B6: Description | C6: Task | D6: Project Workstream
B7: Pre NIC | H7: 6078627 | I7: 500000 | N7: 776215.3749 | S7: 0.9320175777 | V7: 0.06798242226 | X7: =SUM(R7:W7) -> 1 | Z7: =$R7*G7 -> 0 | AA7: =$R7*H7 -> 0 | AB7: 0 | AC7: 0 | AD7: 0 | AE7: 0 | AF7: 0 | AG7: 0 | AH7: 0 | AI7: 0 | AK7: =$S7*G7 -> 0 | AL7: =$S7*H7 -> 5665387.213 | AM7: 466008.7889 | AN7: 0 | AO7: 0 | AP7: 0 | AQ7: 0 | AR7: 723446.3735 | AS7: 0 | AT7: 0 | AV7: =$T7*G7 -> 0 | AW7: =$T7*H7 -> 0 | AX7: 0 | AY7: 0 | AZ7: 0 | BA7: 0 | BB7: 0 | BC7: 0 | BD7: 0 | BE7: 0 | BG7: =$U7*G7 -> 0 | BH7: =$U7*H7 -> 0 | BI7: 0 | BJ7: 0 | BK7: 0 | BL7: 0 | BM7: 0 | BN7: 0 | BO7: 0 | BP7: 0 | BR7: =$V7*G7 -> 0 | BS7: =$V7*H7 -> 413239.7875 | BT7: 33991.21113 | BU7: 0 | BV7: 0 | BW7: 0 | BX7: 0 | BY7: =$V7*N7 -> 52769.00138 | BZ7: 0 | CA7: 0 | CC7: =$W7*G7 -> 0 | CD7: =$W7*H7 -> 0 | CE7: 0 | CF7: 0 | CG7: 0 | CH7: 0 | CI7: 0 | CJ7: 0 | CK7: 0 | CL7: 0
B8: Pre Construction and Demonstration Facility | G8: 492969 | H8: 349450 | I8: 1341482 | N8: 68195.52831 | R8: 0.9072003842 | W8: 0.09279961579 | X8: =SUM(R8:W8) -> 1 | Z8: =$R8*G8 -> 447221.6662 | AA8: =$R8*H8 -> 317021.1743 | AB8: =$R8*I8 -> 1216992.986 | AC8: =$R8*J8 -> 0 | AD8: =$R8*K8 -> 0 | AE8: =$R8*L8 -> 0 | AF8: =$R8*M8 -> 0 | AG8: =$R8*N8 -> 61867.00948 | AH8: =$R8*O8 -> 0 | AI8: =$R8*P8 -> 0 | AK8: =$S8*G8 -> 0 | AL8: =$S8*H8 -> 0 | AM8: =$S8*I8 -> 0 | AN8: =$S8*J8 -> 0 | AO8: =$S8*K8 -> 0 | AP8: =$S8*L8 -> 0 | AQ8: =$S8*M8 -> 0 | AR8: =$S8*N8 -> 0 | AS8: =$S8*O8 -> 0 | AT8: =$S8*P8 -> 0 | AV8: =$T8*G8 -> 0 | AW8: =$T8*H8 -> 0 | AX8: =$T8*I8 -> 0 | AY8: =$T8*J8 -> 0 | AZ8: =$T8*K8 -> 0 | BA8: =$T8*L8 -> 0 | BB8: =$T8*M8 -> 0 | BC8: =$T8*N8 -> 0 | BD8: =$T8*O8 -> 0 | BE8: =$T8*P8 -> 0 | BG8: =$U8*G8 -> 0 | BH8: =$U8*H8 -> 0 | BI8: =$U8*I8 -> 0 | BJ8: =$U8*J8 -> 0 | BK8: =$U8*K8 -> 0 | BL8: =$U8*L8 -> 0 | BM8: =$U8*M8 -> 0 | BN8: =$U8*N8 -> 0 | BO8: =$U8*O8 -> 0 | BP8: =$U8*P8 -> 0 | BR8: =$V8*G8 -> 0 | BS8: =$V8*H8 -> 0 | BT8: =$V8*I8 -> 0 | BU8: =$V8*J8 -> 0 | BV8: =$V8*K8 -> 0 | BW8: =$V8*L8 -> 0 | BX8: =$V8*M8 -> 0 | BY8: =$V8*N8 -> 0 | BZ8: =$V8*O8 -> 0 | CA8: =$V8*P8 -> 0 | CC8: =$W8*G8 -> 45747.3338 | CD8: =$W8*H8 -> 32428.82574 | CE8: =$W8*I8 -> 124489.0142 | CF8: =$W8*J8 -> 0 | CG8: =$W8*K8 -> 0 | CH8: =$W8*L8 -> 0 | CI8: =$W8*M8 -> 0 | CJ8: =$W8*N8 -> 6328.518826 | CK8: =$W8*O8 -> 0 | CL8: =$W8*P8 -> 0
B9: Construction | E9: 2849 | F9: Person Days Project Team | G9: 504999 | H9: 1417167.56 | I9: 2783000 | N9: 254801.575 | W9: 1 | X9: 1 | Z9: 0 | AA9: 0 | AB9: 0 | AC9: 0 | AD9: 0 | AE9: 0 | AF9: 0 | AG9: 0 | AH9: 0 | AI9: 0 | AK9: 0 | AL9: 0 | AM9: 0 | AN9: 0 | AO9: 0 | AP9: 0 | AQ9: 0 | AR9: 0 | AS9: 0 | AT9: 0 | AV9: 0 | AW9: 0 | AX9: 0 | AY9: 0 | AZ9: 0 | BA9: 0 | BB9: 0 | BC9: 0 | BD9: 0 | BE9: 0 | BG9: 0 | BH9: 0 | BI9: 0 | BJ9: 0 | BK9: 0 | BL9: 0 | BM9: 0 | BN9: 0 | BO9: 0 | BP9: 0 | BR9: 0 | BS9: 0 | BT9: 0 | BU9: 0 | BV9: 0 | BW9: 0 | BX9: 0 | BY9: 0 | BZ9: 0 | CA9: 0 | CC9: 504999 | CD9: 1417167.56 | CE9: 2783000 | CF9: 0 | CG9: 0 | CH9: 0 | CI9: 0 | CJ9: 254801.575 | CK9: 0 | CL9: 0
B10: Customer Works | H10: 2585872 | I10: 538540 | N10: 87190.4516 | W10: 1 | X10: =SUM(R10:W10) -> 1 | Z10: =$R10*G10 -> 0 | AA10: =$R10*H10 -> 0 | AB10: =$R10*I10 -> 0 | AC10: =$R10*J10 -> 0 | AD10: =$R10*K10 -> 0 | AE10: =$R10*L10 -> 0 | AF10: =$R10*M10 -> 0 | AG10: =$R10*N10 -> 0 | AH10: =$R10*O10 -> 0 | AI10: =$R10*P10 -> 0 | AK10: =$S10*G10 -> 0 | AL10: =$S10*H10 -> 0 | AM10: =$S10*I10 -> 0 | AN10: =$S10*J10 -> 0 | AO10: =$S10*K10 -> 0 | AP10: =$S10*L10 -> 0 | AQ10: =$S10*M10 -> 0 | AR10: =$S10*N10 -> 0 | AS10: =$S10*O10 -> 0 | AT10: =$S10*P10 -> 0 | AV10: =$T10*G10 -> 0 | AW10: =$T10*H10 -> 0 | AX10: =$T10*I10 -> 0 | AY10: =$T10*J10 -> 0 | AZ10: =$T10*K10 -> 0 | BA10: =$T10*L10 -> 0 | BB10: =$T10*M10 -> 0 | BC10: =$T10*N10 -> 0 | BD10: =$T10*O10 -> 0 | BE10: =$T10*P10 -> 0 | BG10: =$U10*G10 -> 0 | BH10: =$U10*H10 -> 0 | BI10: =$U10*I10 -> 0 | BJ10: =$U10*J10 -> 0 | BK10: =$U10*K10 -> 0 | BL10: =$U10*L10 -> 0 | BM10: =$U10*M10 -> 0 | BN10: =$U10*N10 -> 0 | BO10: =$U10*O10 -> 0 | BP10: =$U10*P10 -> 0 | BR10: 0 | BS10: 0 | BT10: 0 | BU10: 0 | BV10: 0 | BW10: 0 | BX10: 0 | BY10: 0 | BZ10: 0 | CA10: 0 | CC10: =$W10*G10 -> 0 | CD10: =$W10*H10 -> 2585872 | CE10: =$W10*I10 -> 538540 | CF10: =$W10*J10 -> 0 | CG10: =$W10*K10 -> 0 | CH10: =$W10*L10 -> 0 | CI10: =$W10*M10 -> 0 | CJ10: =$W10*N10 -> 87190.4516 | CK10: =$W10*O10 -> 0 | CL10: =$W10*P10 -> 0
B11: Operational Phase | E11: 8120 | F11: Person Days Project Team | G11: 1667394 | H11: 192500 | I11: 1881708.5 | M11: 4192000 | N11: 90502.55511 | W11: 1 | X11: 1 | Z11: 0 | AA11: 0 | AB11: 0 | AC11: 0 | AD11: 0 | AE11: 0 | AF11: 0 | AG11: =$R11*N11 -> 0 | AH11: 0 | AI11: 0 | AK11: 0 | AL11: 0 | AM11: 0 | AN11: 0 | AO11: 0 | AP11: 0 | AQ11: 0 | AR11: 0 | AS11: 0 | AT11: 0 | AV11: 0 | AW11: 0 | AX11: 0 | AY11: 0 | AZ11: 0 | BA11: 0 | BB11: 0 | BC11: 0 | BD11: 0 | BE11: 0 | BG11: 0 | BH11: 0 | BI11: 0 | BJ11: 0 | BK11: 0 | BL11: 0 | BM11: 0 | BN11: 0 | BO11: 0 | BP11: 0 | BR11: =$V11*G11 -> 0 | BS11: =$V11*H11 -> 0 | BT11: =$V11*I11 -> 0 | BU11: =$V11*J11 -> 0 | BV11: =$V11*K11 -> 0 | BW11: =$V11*L11 -> 0 | BX11: =$V11*M11 -> 0 | BY11: =$V11*N11 -> 0 | BZ11: =$V11*O11 -> 0 | CA11: =$V11*P11 -> 0 | CC11: 1667394 | CD11: 192500 | CE11: 1881708.5 | CF11: 0 | CG11: 0 | CH11: 0 | CI11: 4192000 | CJ11: 90502.55511 | CK11: 0 | CL11: 0
B12: Support Services | H12: 79250 | I12: 1791946 | N12: 112060.1876 | Q12: Total Cost | W12: 1 | X12: =SUM(R12:W12) -> 1 | Z12: =$R12*G12 -> 0 | AA12: 0 | AB12: 0 | AC12: 0 | AD12: 0 | AE12: 0 | AF12: 0 | AG12: 0 | AH12: 0 | AI12: 0 | AK12: =$S12*G12 -> 0 | AL12: 0 | AM12: 0 | AN12: 0 | AO12: 0 | AP12: 0 | AQ12: 0 | AR12: 0 | AS12: 0 | AT12: 0 | AV12: =$T12*G12 -> 0 | AW12: 0 | AX12: 0 | AY12: 0 | AZ12: 0 | BA12: 0 | BB12: 0 | BC12: 0 | BD12: 0 | BE12: 0 | BG12: =$U12*G12 -> 0 | BH12: 0 | BI12: 0 | BJ12: 0 | BK12: 0 | BL12: 0 | BM12: 0 | BN12: 0 | BO12: 0 | BP12: 0 | BR12: =$V12*G12 -> 0 | BS12: 0 | BT12: 0 | BU12: 0 | BV12: 0 | BW12: 0 | BX12: 0 | BY12: 0 | BZ12: 0 | CA12: 0 | CC12: =$W12*G12 -> 0 | CD12: 79250 | CE12: 1791946 | CF12: 0 | CG12: 0 | CH12: 0 | CI12: 0 | CJ12: 112060.1876 | CK12: 0 | CL12: 0
B13: Total | G13: =SUM(G7:G12) -> 2665362 | H13: =SUM(H7:H12) -> 10702866.56 | I13: 8836676.5 | J13: 0 | K13: 0 | L13: 0 | M13: 4192000 | N13: 1388965.673 | O13: 0 | P13: 0 | Q13: =SUM(G13:P13) -> 27785870.73 | Z13: =SUM(Z7:Z12) -> 447221.6662 | AA13: =SUM(AA7:AA12) -> 317021.1743 | AB13: 1216992.986 | AC13: 0 | AD13: 0 | AE13: 0 | AF13: 0 | AG13: 61867.00948 | AH13: 0 | AI13: 0 | AK13: =SUM(AK7:AK12) -> 0 | AL13: =SUM(AL7:AL12) -> 5665387.213 | AM13: 466008.7889 | AN13: 0 | AO13: 0 | AP13: 0 | AQ13: 0 | AR13: 723446.3735 | AS13: 0 | AT13: 0 | AV13: =SUM(AV7:AV12) -> 0 | AW13: =SUM(AW7:AW12) -> 0 | AX13: 0 | AY13: 0 | AZ13: 0 | BA13: 0 | BB13: 0 | BC13: 0 | BD13: 0 | BE13: 0 | BG13: =SUM(BG7:BG12) -> 0 | BH13: =SUM(BH7:BH12) -> 0 | BI13: 0 | BJ13: 0 | BK13: 0 | BL13: 0 | BM13: 0 | BN13: 0 | BO13: 0 | BP13: 0 | BR13: =SUM(BR7:BR12) -> 0 | BS13: =SUM(BS7:BS12) -> 413239.7875 | BT13: 33991.21113 | BU13: 0 | BV13: 0 | BW13: 0 | BX13: 0 | BY13: 52769.00138 | BZ13: 0 | CA13: 0 | CC13: =SUM(CC7:CC12) -> 2218140.334 | CD13: =SUM(CD7:CD12) -> 4307218.386 | CE13: 7119683.514 | CF13: 0 | CG13: 0 | CH13: 0 | CI13: 4192000 | CJ13: 550883.2881 | CK13: 0 | CL13: 0
D259: Totals

Sheet Project Direction
C4: Cost Category | D4: Cost
C5: Labour
D6: ='Whole project'!CC13+'Whole project'!Z13+'Whole project'!BR13 -> 2665362
C7: Equipment
D8: ='Whole project'!CD13+'Whole project'!AA13+'Whole project'!BS13 -> 5037479.347
C9: Contractors
D10: ='Whole project'!CE13+'Whole project'!AB13+'Whole project'!BT13 -> 8370667.711
C11: IT
D12: ='Whole project'!CF13+'Whole project'!AC13+'Whole project'!BU13 -> 0
C13: IPR Costs
D14: ='Whole project'!CG13+'Whole project'!AD13+'Whole project'!BV13 -> 0
C15: Travel & Expenses
D16: ='Whole project'!CH13+'Whole project'!AE13+'Whole project'!BW13 -> 0
C17: Payments to users
D18: ='Whole project'!CI13+'Whole project'!AF13+'Whole project'!BX13 -> 4192000
C19: Contingency
D20: ='Whole project'!CJ13+'Whole project'!AG13+'Whole project'!BY13 -> 665519.299
C21: Decommissioning
D22: ='Whole project'!CK13+'Whole project'!AH13+'Whole project'!BZ13 -> 0
C23: Other
D24: ='Whole project'!CL13+'Whole project'!AI13+'Whole project'!CA13 -> 0 | E24: Check that = to Total Outstanding Funding Required + Licensee Compulsory Contribution + Licensee Extra Contribution
C25: Total | D25: =SUM(D6:D24) -> 20931028.36 | E25: =IF(D25=('NIC Funding Request'!J79+'NIC Funding Request'!J37+'NIC Funding Request'!J66),"OK", "ERROR") -> OK
